FIN.POSTING DATE,AMOUNT,MERCHANT CATEGORY,SUMMARY OF PURPOSE,LOCAL AUTHORITY DEPARTMENT,BENEFICIARY,VALUE ADDED TAX THAT CANNOT BE RECOVERED
03/10/16,23.00 ,Mail Order / Direct Selling,DIRECT MARKETING-OTHER DIRECT MARKETERS/NOT ELSEW.,ADMINISTRATION,AMAZON EU,Not applicable
03/10/16,27.42 ,Mail Order / Direct Selling,DIRECT MARKETING-OTHER DIRECT MARKETERS/NOT ELSEW.,ADMINISTRATION,AMAZON EU,Not applicable
03/10/16,9.50 ,Books and Periodicals,BOOK STORES,ADMINISTRATION,AMAZON UK MARKETPLACE,Not applicable
03/10/16,9.50 ,Books and Periodicals,BOOK STORES,ADMINISTRATION,AMAZON UK MARKETPLACE,Not applicable
03/10/16,20.00 ,Travel - Air/Rail/Road,PASSENGER RAILWAYS,ADMINISTRATION,OYSTER BUS AUTOTOP,Not applicable
03/10/16,3.60 ,Books and Periodicals,BOOK STORES,ADMINISTRATION,AMAZON UK MARKETPLACE,Not applicable
03/10/16,20.74 ,General Retail and Wholesale,MISCELLANEOUS AND SPECIALTY RETAIL STORES,ADMINISTRATION,AMAZON UK RETAIL AMAZO,Not applicable
03/10/16,15.49 ,General Retail and Wholesale,MISCELLANEOUS AND SPECIALTY RETAIL STORES,ADMINISTRATION,AMAZON UK RETAIL AMAZO,Not applicable
03/10/16,15.49 ,Mail Order / Direct Selling,DIRECT MARKETING-OTHER DIRECT MARKETERS/NOT ELSEW.,ADMINISTRATION,AMAZON EU,Not applicable
03/10/16,15.49 ,General Retail and Wholesale,MISCELLANEOUS AND SPECIALTY RETAIL STORES,ADMINISTRATION,AMAZON UK RETAIL AMAZO,Not applicable
04/10/16,565.50 ,General Retail and Wholesale,MISCELLANEOUS AND SPECIALTY RETAIL STORES,ADMINISTRATION,TESCO DIRECT,Not applicable
04/10/16,98.53 ,Travel - Air/Rail/Road,PASSENGER RAILWAYS,ADMINISTRATION,TRAINLINE.COM LTD,Not applicable
05/10/16,25.60 ,General Retail and Wholesale,"GROCERY STORES, SUPERMARKETS",ADMINISTRATION,SAINSBURYS 0069,Not applicable
05/10/16,25.00 ,Travel - Air/Rail/Road,PASSENGER RAILWAYS,ADMINISTRATION,OYSTER ISSUE WEB,Not applicable
05/10/16,25.00 ,Travel - Air/Rail/Road,PASSENGER RAILWAYS,ADMINISTRATION,OYSTER ISSUE WEB,Not applicable
06/10/16,15.15 ,Books and Periodicals,BOOK STORES,ADMINISTRATION,AMAZON UK MARKETPLACE,Not applicable
07/10/16,3.30 ,General Retail and Wholesale,"GROCERY STORES, SUPERMARKETS",ADMINISTRATION,WAITROSE 673,Not applicable
07/10/16,75.69 ,Mail Order / Direct Selling,DIRECT MARKETING-OTHER DIRECT MARKETERS/NOT ELSEW.,ADMINISTRATION,AMAZON EU,Not applicable
07/10/16,20.00 ,Travel - Air/Rail/Road,PASSENGER RAILWAYS,ADMINISTRATION,OYSTER AUTOTOPUP,Not applicable
07/10/16,20.00 ,Travel - Air/Rail/Road,PASSENGER RAILWAYS,ADMINISTRATION,OYSTER BUS AUTOTOP,Not applicable
07/10/16,-20.00 ,Travel - Air/Rail/Road,PASSENGER RAILWAYS,ADMINISTRATION,OYSTER RENEW WEB,Not applicable
07/10/16,-20.00 ,Travel - Air/Rail/Road,PASSENGER RAILWAYS,ADMINISTRATION,OYSTER RENEW WEB,Not applicable
10/10/16,2.99 ,Books and Periodicals,BOOK STORES,ADMINISTRATION,AMAZON UK MARKETPLACE,Not applicable
10/10/16,20.00 ,Travel - Air/Rail/Road,PASSENGER RAILWAYS,ADMINISTRATION,OYSTER AUTOTOPUP,Not applicable
10/10/16,20.00 ,Travel - Air/Rail/Road,PASSENGER RAILWAYS,ADMINISTRATION,OYSTER AUTOTOPUP,Not applicable
11/10/16,21.51 ,General Retail and Wholesale,"GROCERY STORES, SUPERMARKETS",ADMINISTRATION,TESCO STORE 3235,Not applicable
13/10/16,11.90 ,Books and Periodicals,BOOK STORES,ADMINISTRATION,AMAZON UK MARKETPLACE,Not applicable
13/10/16,25.00 ,Travel - Air/Rail/Road,PASSENGER RAILWAYS,ADMINISTRATION,OYSTER ISSUE WEB,Not applicable
13/10/16,25.00 ,Travel - Air/Rail/Road,PASSENGER RAILWAYS,ADMINISTRATION,OYSTER ISSUE WEB,Not applicable
17/10/16,5.00 ,General Retail and Wholesale,DISCOUNT STORES,ADMINISTRATION,POUNDLAND LTD 1027,Not applicable
17/10/16,52.95 ,General Retail and Wholesale,"GROCERY STORES, SUPERMARKETS",ADMINISTRATION,SAINSBURYS 0069,Not applicable
17/10/16,20.00 ,Travel - Air/Rail/Road,PASSENGER RAILWAYS,ADMINISTRATION,OYSTER AUTOTOPUP,Not applicable
17/10/16,20.00 ,Travel - Air/Rail/Road,PASSENGER RAILWAYS,ADMINISTRATION,OYSTER AUTOTOPUP,Not applicable
19/10/16,1.15 ,General Retail and Wholesale,"GROCERY STORES, SUPERMARKETS",ADMINISTRATION,SAINSBURYS SACAT 0069,Not applicable
19/10/16,5.50 ,Books and Periodicals,BOOK STORES,ADMINISTRATION,AMAZON UK MARKETPLACE,Not applicable
19/10/16,25.00 ,Travel - Air/Rail/Road,PASSENGER RAILWAYS,ADMINISTRATION,OYSTER ISSUE WEB,Not applicable
20/10/16,20.00 ,Travel - Air/Rail/Road,PASSENGER RAILWAYS,ADMINISTRATION,OYSTER BUS AUTOTOP,Not applicable
20/10/16,20.00 ,Travel - Air/Rail/Road,PASSENGER RAILWAYS,ADMINISTRATION,OYSTER AUTOTOPUP,Not applicable
21/10/16,20.00 ,Travel - Air/Rail/Road,PASSENGER RAILWAYS,ADMINISTRATION,OYSTER AUTOTOPUP,Not applicable
21/10/16,20.00 ,Travel - Air/Rail/Road,PASSENGER RAILWAYS,ADMINISTRATION,OYSTER AUTOTOPUP,Not applicable
21/10/16,20.00 ,Travel - Air/Rail/Road,PASSENGER RAILWAYS,ADMINISTRATION,OYSTER BUS AUTOTOP,Not applicable
21/10/16,20.00 ,Travel - Air/Rail/Road,PASSENGER RAILWAYS,ADMINISTRATION,OYSTER BUS AUTOTOP,Not applicable
24/10/16,33.00 ,General Retail and Wholesale,DEPARTMENT STORES,ADMINISTRATION,DEBENHAMS,Not applicable
24/10/16,132.00 ,General Retail and Wholesale,DEPARTMENT STORES,ADMINISTRATION,DEBENHAMS,Not applicable
24/10/16,45.00 ,General Retail and Wholesale,DEPARTMENT STORES,ADMINISTRATION,DEBENHAMS.COM,Not applicable
25.10.16,25.00,Travel - Air/Rail/Road,PASSENGER RAILWAYS,ADMINISTRATION,OYSTER ISSUE WEB,Not applicable
26/10/16,14.10 ,General Retail and Wholesale,"GROCERY STORES, SUPERMARKETS",ADMINISTRATION,SAINSBURYS SACAT 0069,Not applicable
26/10/16,137.94 ,Books and Periodicals,BOOK STORES,ADMINISTRATION,AMAZON UK MARKETPLACE,Not applicable
27/10/16,32.93 ,Books and Periodicals,BOOK STORES,ADMINISTRATION,AMAZON UK MARKETPLACE,Not applicable
27/10/16,11.35 ,Books and Periodicals,BOOK STORES,ADMINISTRATION,AMAZON UK MARKETPLACE,Not applicable
27/10/16,20.00 ,Travel - Air/Rail/Road,PASSENGER RAILWAYS,ADMINISTRATION,OYSTER AUTOTOPUP,Not applicable
28/10/16,91.29 ,Travel - Air/Rail/Road,PASSENGER RAILWAYS,ADMINISTRATION,TRAINLINE.COM LTD,Not applicable
31/10/16,22.70 ,Books and Periodicals,BOOK STORES,ADMINISTRATION,"AMAZON SVCS EUROPE,SAR",Not applicable
31/10/16,20.00 ,Travel - Air/Rail/Road,PASSENGER RAILWAYS,ADMINISTRATION,OYSTER BUS AUTOTOP,Not applicable
31/10/16,20.00 ,Travel - Air/Rail/Road,PASSENGER RAILWAYS,ADMINISTRATION,OYSTER AUTOTOPUP,Not applicable
31/10/16,20.49 ,Mail Order / Direct Selling,DIRECT MARKETING-OTHER DIRECT MARKETERS/NOT ELSEW.,ADMINISTRATION,AMAZON EU,Not applicable
31/10/16,31.26 ,General Retail and Wholesale,MISCELLANEOUS AND SPECIALTY RETAIL STORES,ADMINISTRATION,AMAZON UK RETAIL AMAZO,Not applicable
31/10/16,20.00 ,Travel - Air/Rail/Road,PASSENGER RAILWAYS,ADMINISTRATION,OYSTER BUS AUTOTOP,Not applicable
31/10/16,20.00 ,Travel - Air/Rail/Road,PASSENGER RAILWAYS,ADMINISTRATION,OYSTER AUTOTOPUP,Not applicable
31/10/16,20.00 ,Travel - Air/Rail/Road,PASSENGER RAILWAYS,ADMINISTRATION,OYSTER AUTOTOPUP,Not applicable
31/10/16,8.00 ,Books and Periodicals,BOOK STORES,ADMINISTRATION,AMAZON UK MARKETPLACE,Not applicable
31/10/16,8.00 ,Books and Periodicals,BOOK STORES,ADMINISTRATION,AMAZON UK MARKETPLACE,Not applicable
31/10/16,4.22 ,Books and Periodicals,BOOK STORES,ADMINISTRATION,AMAZON UK MARKETPLACE,Not applicable
31/10/16,79.00 ,Mail Order / Direct Selling,DIRECT MARKETING-CONTINUITY/SUBSCRIPTION MERCHANTS,ADMINISTRATION,AMAZON PRIME,Not applicable
31/10/16,20.00 ,Travel - Air/Rail/Road,PASSENGER RAILWAYS,ADMINISTRATION,OYSTER AUTOTOPUP,Not applicable
01/11/16,2.49 ,General Retail and Wholesale,"GROCERY STORES, SUPERMARKETS",ADMINISTRATION,WAITROSE 673,Not applicable
01/11/16,0.75 ,General Retail and Wholesale,"GROCERY STORES, SUPERMARKETS",ADMINISTRATION,TESCO STORES 6493,Not applicable
02/11/16,150.95 ,Books and Periodicals,BOOK STORES,ADMINISTRATION,AMAZON UK MARKETPLACE,Not applicable
03/11/16,78.40 ,Books and Periodicals,BOOK STORES,ADMINISTRATION,AMAZON UK MARKETPLACE,Not applicable
03/11/16,4.99 ,Books and Periodicals,BOOK STORES,ADMINISTRATION,AMAZON UK MARKETPLACE,Not applicable
04/11/16,8.60 ,General Retail and Wholesale,"GROCERY STORES, SUPERMARKETS",ADMINISTRATION,SAINSBURYS SACAT 0069,Not applicable
04/11/16,35.00 ,Statutory Bodies,GOVERNMENT SERVICES-NOT ELSEWHERE CLASSIFIED,ADMINISTRATION,WWW.ICO.GOV.UK,Not applicable
04/11/16,35.00 ,Statutory Bodies,GOVERNMENT SERVICES-NOT ELSEWHERE CLASSIFIED,ADMINISTRATION,WWW.ICO.GOV.UK,Not applicable
04/11/16,35.00 ,Statutory Bodies,GOVERNMENT SERVICES-NOT ELSEWHERE CLASSIFIED,ADMINISTRATION,WWW.ICO.GOV.UK,Not applicable
04/11/16,35.00 ,Statutory Bodies,GOVERNMENT SERVICES-NOT ELSEWHERE CLASSIFIED,ADMINISTRATION,WWW.ICO.GOV.UK,Not applicable
04/11/16,35.00 ,Statutory Bodies,GOVERNMENT SERVICES-NOT ELSEWHERE CLASSIFIED,ADMINISTRATION,WWW.ICO.GOV.UK,Not applicable
04/11/16,35.00 ,Statutory Bodies,GOVERNMENT SERVICES-NOT ELSEWHERE CLASSIFIED,ADMINISTRATION,WWW.ICO.GOV.UK,Not applicable
04/11/16,35.00 ,Statutory Bodies,GOVERNMENT SERVICES-NOT ELSEWHERE CLASSIFIED,ADMINISTRATION,WWW.ICO.GOV.UK,Not applicable
04/11/16,35.00 ,Statutory Bodies,GOVERNMENT SERVICES-NOT ELSEWHERE CLASSIFIED,ADMINISTRATION,WWW.ICO.GOV.UK,Not applicable
04/11/16,35.00 ,Statutory Bodies,GOVERNMENT SERVICES-NOT ELSEWHERE CLASSIFIED,ADMINISTRATION,WWW.ICO.GOV.UK,Not applicable
04/11/16,35.00 ,Statutory Bodies,GOVERNMENT SERVICES-NOT ELSEWHERE CLASSIFIED,ADMINISTRATION,WWW.ICO.GOV.UK,Not applicable
04/11/16,35.00 ,Statutory Bodies,GOVERNMENT SERVICES-NOT ELSEWHERE CLASSIFIED,ADMINISTRATION,WWW.ICO.GOV.UK,Not applicable
04/11/16,35.00 ,Statutory Bodies,GOVERNMENT SERVICES-NOT ELSEWHERE CLASSIFIED,ADMINISTRATION,WWW.ICO.GOV.UK,Not applicable
04/11/16,35.00 ,Statutory Bodies,GOVERNMENT SERVICES-NOT ELSEWHERE CLASSIFIED,ADMINISTRATION,WWW.ICO.GOV.UK,Not applicable
04/11/16,35.00 ,Statutory Bodies,GOVERNMENT SERVICES-NOT ELSEWHERE CLASSIFIED,ADMINISTRATION,WWW.ICO.GOV.UK,Not applicable
04/11/16,20.00 ,Travel - Air/Rail/Road,PASSENGER RAILWAYS,ADMINISTRATION,OYSTER AUTOTOPUP,Not applicable
07/11/16,20.00 ,Travel - Air/Rail/Road,PASSENGER RAILWAYS,ADMINISTRATION,OYSTER AUTOTOPUP,Not applicable
07/11/16,20.00 ,Travel - Air/Rail/Road,PASSENGER RAILWAYS,ADMINISTRATION,OYSTER AUTOTOPUP,Not applicable
07/11/16,20.00 ,Travel - Air/Rail/Road,PASSENGER RAILWAYS,ADMINISTRATION,OYSTER AUTOTOPUP,Not applicable
07/11/16,20.00 ,Travel - Air/Rail/Road,PASSENGER RAILWAYS,ADMINISTRATION,OYSTER AUTOTOPUP,Not applicable
08/11/16,13.59 ,General Retail and Wholesale,"GROCERY STORES, SUPERMARKETS",ADMINISTRATION,TESCO STORE 3235,Not applicable
08/11/16,14.50 ,Books and Periodicals,BOOK STORES,ADMINISTRATION,AMAZON UK MARKETPLACE,Not applicable
09/11/16,87.54 ,General Retail and Wholesale,"GROCERY STORES, SUPERMARKETS",ADMINISTRATION,SAINSBURYS 0069,Not applicable
09/11/16,1.80 ,Books and Periodicals,BOOK STORES,ADMINISTRATION,AMAZON UK MARKETPLACE,Not applicable
09/11/16,29.28 ,Books and Periodicals,BOOK STORES,ADMINISTRATION,AMAZON UK MARKETPLACE,Not applicable
09/11/16,1.99 ,Books and Periodicals,BOOK STORES,ADMINISTRATION,AMAZON UK MARKETPLACE,Not applicable
09/11/16,179.00 ,Clubs/Associations/Organisations,"ORGANIZATIONS, MEMBERSHIP-NOT ELSEWHERE CLASSIFIED",ADMINISTRATION,CIEH,Not applicable
10/11/16,25.00 ,Travel - Air/Rail/Road,PASSENGER RAILWAYS,ADMINISTRATION,OYSTER ISSUE WEB,Not applicable
10/11/16,25.00 ,Travel - Air/Rail/Road,PASSENGER RAILWAYS,ADMINISTRATION,OYSTER ISSUE WEB,Not applicable
10/11/16,2.00 ,Books and Periodicals,BOOK STORES,ADMINISTRATION,AMAZON UK MARKETPLACE,Not applicable
11/11/16,20.00 ,Travel - Air/Rail/Road,PASSENGER RAILWAYS,ADMINISTRATION,OYSTER AUTOTOPUP,Not applicable
11/11/16,20.00 ,Travel - Air/Rail/Road,PASSENGER RAILWAYS,ADMINISTRATION,OYSTER AUTOTOPUP,Not applicable
11/11/16,20.00 ,Travel - Air/Rail/Road,PASSENGER RAILWAYS,ADMINISTRATION,OYSTER BUS AUTOTOP,Not applicable
14/11/16,10.00 ,General Retail and Wholesale,"GROCERY STORES, SUPERMARKETS",ADMINISTRATION,TESCO STORE 3235,Not applicable
14/11/16,196.00 ,General Retail and Wholesale,"GROCERY STORES, SUPERMARKETS",ADMINISTRATION,ASDA STORES,Not applicable
14/11/16,54.99 ,Books and Periodicals,BOOK STORES,ADMINISTRATION,AMAZON UK MARKETPLACE,Not applicable
14/11/16,35.76 ,Mail Order / Direct Selling,DIRECT MARKETING-OTHER DIRECT MARKETERS/NOT ELSEW.,ADMINISTRATION,AMAZON EU,Not applicable
14/11/16,14.50 ,Books and Periodicals,BOOK STORES,ADMINISTRATION,AMAZON UK MARKETPLACE,Not applicable
14/11/16,11.92 ,General Retail and Wholesale,MISCELLANEOUS AND SPECIALTY RETAIL STORES,ADMINISTRATION,AMAZON UK RETAIL AMAZO,Not applicable
14/11/16,7.50 ,Books and Periodicals,BOOK STORES,ADMINISTRATION,AMAZON UK MARKETPLACE,Not applicable
15/11/16,3.65 ,General Retail and Wholesale,"GROCERY STORES, SUPERMARKETS",ADMINISTRATION,SAINSBURYS 0069,Not applicable
15/11/16,-50.00 ,General Retail and Wholesale,"GROCERY STORES, SUPERMARKETS",ADMINISTRATION,SAINSBURYS 0069,Not applicable
15/11/16,28.85 ,Mail Order / Direct Selling,DIRECT MARKETING-OTHER DIRECT MARKETERS/NOT ELSEW.,ADMINISTRATION,AMAZON EU,Not applicable
15/11/16,20.00 ,Travel - Air/Rail/Road,PASSENGER RAILWAYS,ADMINISTRATION,OYSTER BUS AUTOSET,Not applicable
16/11/16,8.24 ,General Retail and Wholesale,"GROCERY STORES, SUPERMARKETS",ADMINISTRATION,WAITROSE 673,Not applicable
16/11/16,39.80 ,Books and Periodicals,BOOK STORES,ADMINISTRATION,AMAZON UK MARKETPLACE,Not applicable
16/11/16,101.52 ,Books and Periodicals,BOOK STORES,ADMINISTRATION,AMAZON UK MARKETPLACE,Not applicable
17.11.16,199.00,Statutory Bodies,PERMISSION TO WORK IN THE UK CERT FROM UK BORDER AGENCY,ADMINISTRATION,UKBA5157710237,Not applicable
18/11/16,3.65 ,General Retail and Wholesale,"GROCERY STORES, SUPERMARKETS",ADMINISTRATION,WAITROSE 673,Not applicable
18/11/16,39.99 ,General Retail and Wholesale,DISCOUNT STORES,ADMINISTRATION,ARGOS,Not applicable
18/11/16,2.10 ,General Retail and Wholesale,"GROCERY STORES, SUPERMARKETS",ADMINISTRATION,WAITROSE 673,Not applicable
18/11/16,9.05 ,General Retail and Wholesale,HARDWARE STORES,ADMINISTRATION,ROBERT DYAS HOLDNG LTD,Not applicable
18/11/16,4.00 ,Books and Periodicals,BOOK STORES,ADMINISTRATION,AMAZON UK MARKETPLACE,Not applicable
18/11/16,25.00 ,Travel - Air/Rail/Road,PASSENGER RAILWAYS,ADMINISTRATION,OYSTER ISSUE WEB,Not applicable
18/11/16,20.00 ,Travel - Air/Rail/Road,PASSENGER RAILWAYS,ADMINISTRATION,OYSTER AUTOTOPUP,Not applicable
18/11/16,20.00 ,Travel - Air/Rail/Road,PASSENGER RAILWAYS,ADMINISTRATION,OYSTER AUTOTOPUP,Not applicable
18/11/16,12.00 ,General Retail and Wholesale,MISCELLANEOUS AND SPECIALTY RETAIL STORES,ADMINISTRATION,AMAZON UK RETAIL AMAZO,Not applicable
21/11/16,1.49 ,Medical Supplies and Services,"DRUG STORES, PHARMACIES",ADMINISTRATION,SAVERS HEALTH & BEAUTY,Not applicable
21/11/16,13.03 ,General Retail and Wholesale,HARDWARE STORES,ADMINISTRATION,ROBERT DYAS HOLDNG LTD,Not applicable
21/11/16,131.75 ,Statutory Bodies,GOVERNMENT SERVICES-NOT ELSEWHERE CLASSIFIED,ADMINISTRATION,DVLA VEHICLE TAX,Not applicable
21/11/16,20.00 ,Travel - Air/Rail/Road,PASSENGER RAILWAYS,ADMINISTRATION,OYSTER AUTOTOPUP,Not applicable
21/11/16,20.00 ,Travel - Air/Rail/Road,PASSENGER RAILWAYS,ADMINISTRATION,OYSTER AUTOTOPUP,Not applicable
21/11/16,25.00 ,Travel - Air/Rail/Road,PASSENGER RAILWAYS,ADMINISTRATION,OYSTER ISSUE WEB,Not applicable
21/11/16,25.00 ,Travel - Air/Rail/Road,PASSENGER RAILWAYS,ADMINISTRATION,OYSTER ISSUE WEB,Not applicable
23/11/16,199.00 ,Statutory Bodies,PERMISSION TO WORK IN THE UK CERT FROM UK BORDER AGENCY,ADMINISTRATION,UKBA5159760417,Not applicable
24/11/16,13.84 ,General Retail and Wholesale,"GROCERY STORES, SUPERMARKETS",ADMINISTRATION,TESCO STORE 3235,Not applicable
24/11/16,20.00 ,Travel - Air/Rail/Road,PASSENGER RAILWAYS,ADMINISTRATION,OYSTER AUTOTOPUP,Not applicable
25/11/16,5.54 ,General Retail and Wholesale,HARDWARE STORES,ADMINISTRATION,ROBERT DYAS HOLDNG LTD,Not applicable
25/11/16,956.64 ,Catering and Catering Supplies,CATERERS,ADMINISTRATION,BRAKES,Not applicable
25/11/16,13.98 ,General Retail and Wholesale,HARDWARE STORES,ADMINISTRATION,ROBERT DYAS HOLDNG LTD,Not applicable
25/11/16,20.00 ,Travel - Air/Rail/Road,PASSENGER RAILWAYS,ADMINISTRATION,OYSTER AUTOTOPUP,Not applicable
25/11/16,20.00 ,Travel - Air/Rail/Road,PASSENGER RAILWAYS,ADMINISTRATION,OYSTER BUS AUTOTOP,Not applicable
28/11/16,16.20 ,General Retail and Wholesale,"GROCERY STORES, SUPERMARKETS",ADMINISTRATION,TESCO STORE 3235,Not applicable
28/11/16,20.00 ,Travel - Air/Rail/Road,PASSENGER RAILWAYS,ADMINISTRATION,OYSTER BUS AUTOTOP,Not applicable
28/11/16,20.00 ,Travel - Air/Rail/Road,PASSENGER RAILWAYS,ADMINISTRATION,OYSTER AUTOTOPUP,Not applicable
28/11/16,20.00 ,Travel - Air/Rail/Road,PASSENGER RAILWAYS,ADMINISTRATION,OYSTER AUTOTOPUP,Not applicable
28/11/16,20.00 ,Travel - Air/Rail/Road,PASSENGER RAILWAYS,ADMINISTRATION,OYSTER BUS AUTOTOP,Not applicable
28/11/16,20.00 ,Travel - Air/Rail/Road,PASSENGER RAILWAYS,ADMINISTRATION,OYSTER AUTOTOPUP,Not applicable
28/11/16,20.00 ,Travel - Air/Rail/Road,PASSENGER RAILWAYS,ADMINISTRATION,OYSTER AUTOTOPUP,Not applicable
28/11/16,20.00 ,Travel - Air/Rail/Road,PASSENGER RAILWAYS,ADMINISTRATION,OYSTER AUTOTOPUP,Not applicable
29/11/16,234.26 ,General Retail and Wholesale,"GROCERY STORES, SUPERMARKETS",ADMINISTRATION,LIDL UK,Not applicable
29/11/16,17.76 ,General Retail and Wholesale,"GROCERY STORES, SUPERMARKETS",ADMINISTRATION,ASDA SUPERSTORE,Not applicable
29/11/16,39.99 ,General Retail and Wholesale,DISCOUNT STORES,ADMINISTRATION,ARGOS,Not applicable
29/11/16,67.74 ,Automotive Fuel,SERVICE STATIONS WITH OR WITHOUT ANCILLARY SERVICE,ADMINISTRATION,RONTEC GARRATT LAN,Not applicable
29/11/16,110.44 ,General Retail and Wholesale,"GROCERY STORES, SUPERMARKETS",ADMINISTRATION,TESCO STORE 3235,Not applicable
29/11/16,7.07 ,Mail Order / Direct Selling,DIRECT MARKETING-OTHER DIRECT MARKETERS/NOT ELSEW.,ADMINISTRATION,AMAZON EU,Not applicable
29/11/16,3.14 ,Books and Periodicals,BOOK STORES,ADMINISTRATION,AMAZON UK MARKETPLACE,Not applicable
29/11/16,25.00 ,Travel - Air/Rail/Road,PASSENGER RAILWAYS,ADMINISTRATION,OYSTER ISSUE WEB,Not applicable
29/11/16,25.00 ,Travel - Air/Rail/Road,PASSENGER RAILWAYS,ADMINISTRATION,OYSTER ISSUE WEB,Not applicable
29/11/16,25.00 ,Travel - Air/Rail/Road,PASSENGER RAILWAYS,ADMINISTRATION,OYSTER ISSUE WEB,Not applicable
29/11/16,20.00 ,Travel - Air/Rail/Road,PASSENGER RAILWAYS,ADMINISTRATION,OYSTER AUTOTOPUP,Not applicable
30/11/16,3.00 ,General Retail and Wholesale,DISCOUNT STORES,ADMINISTRATION,POUNDLAND LTD 1027,Not applicable
30/11/16,11.00 ,General Retail and Wholesale,DISCOUNT STORES,ADMINISTRATION,POUNDLAND LTD 1027,Not applicable
30/11/16,23.30 ,General Retail and Wholesale,"GROCERY STORES, SUPERMARKETS",ADMINISTRATION,TESCO STORE 3235,Not applicable
30/11/16,10.00 ,Travel - Air/Rail/Road,"BRIDGE AND ROAD FEES, TOLLS",ADMINISTRATION,TFL CC AUTO PAY,Not applicable
30/11/16,8.99 ,Books and Periodicals,BOOK STORES,ADMINISTRATION,AMAZON UK MARKETPLACE,Not applicable
30/11/16,62.30 ,Computer Equipment & Services,COMPUTER SOFTWARE STORES,ADMINISTRATION,GLOBAL GOLD NETWORK,Not applicable
01/12/16,20.00 ,Travel - Air/Rail/Road,PASSENGER RAILWAYS,ADMINISTRATION,OYSTER BUS AUTOTOP,Not applicable
01/12/16,20.00 ,Travel - Air/Rail/Road,PASSENGER RAILWAYS,ADMINISTRATION,OYSTER AUTOTOPUP,Not applicable
02/12/16,25.00 ,Travel - Air/Rail/Road,PASSENGER RAILWAYS,ADMINISTRATION,OYSTER ISSUE WEB,Not applicable
02/12/16,20.00 ,Travel - Air/Rail/Road,PASSENGER RAILWAYS,ADMINISTRATION,OYSTER BUS AUTOTOP,Not applicable
02/12/16,20.00 ,Travel - Air/Rail/Road,PASSENGER RAILWAYS,ADMINISTRATION,OYSTER AUTOTOPUP,Not applicable
05/12/16,5.12 ,Books and Periodicals,BOOK STORES,ADMINISTRATION,AMAZON UK MARKETPLACE,Not applicable
05/12/16,4.30 ,Automotive Fuel,SERVICE STATIONS WITH OR WITHOUT ANCILLARY SERVICE,ADMINISTRATION,BP WANDSWORTH S/SERVE,Not applicable
05/12/16,8.85 ,Books and Periodicals,BOOK STORES,ADMINISTRATION,AMAZON UK MARKETPLACE,Not applicable
05/12/16,5.90 ,Books and Periodicals,BOOK STORES,ADMINISTRATION,AMAZON UK MARKETPLACE,Not applicable
05/12/16,20.00 ,Travel - Air/Rail/Road,PASSENGER RAILWAYS,ADMINISTRATION,OYSTER AUTOTOPUP,Not applicable
05/12/16,9.98 ,Books and Periodicals,BOOK STORES,ADMINISTRATION,AMAZON UK MARKETPLACE,Not applicable
05/12/16,20.00 ,Travel - Air/Rail/Road,PASSENGER RAILWAYS,ADMINISTRATION,OYSTER AUTOTOPUP,Not applicable
06/12/16,4.05 ,General Retail and Wholesale,"GROCERY STORES, SUPERMARKETS",ADMINISTRATION,WAITROSE 673,Not applicable
06/12/16,43.28 ,General Retail and Wholesale,"GROCERY STORES, SUPERMARKETS",ADMINISTRATION,SAINSBURYS 0069,Not applicable
06/12/16,52.54 ,Books and Periodicals,BOOK STORES,ADMINISTRATION,AMAZON UK MARKETPLACE,Not applicable
08/12/16,8.01 ,General Retail and Wholesale,"GROCERY STORES, SUPERMARKETS",ADMINISTRATION,TESCO STORE 3235,Not applicable
08/12/16,20.00 ,Travel - Air/Rail/Road,PASSENGER RAILWAYS,ADMINISTRATION,OYSTER AUTOTOPUP,Not applicable
08/12/16,20.00 ,Travel - Air/Rail/Road,PASSENGER RAILWAYS,ADMINISTRATION,OYSTER AUTOTOPUP,Not applicable
09/12/16,5.75 ,General Retail and Wholesale,"GROCERY STORES, SUPERMARKETS",ADMINISTRATION,WAITROSE 673,Not applicable
09/12/16,3.99 ,General Retail and Wholesale,HARDWARE STORES,ADMINISTRATION,ROBERT DYAS HOLDNG LTD,Not applicable
09/12/16,20.00 ,Travel - Air/Rail/Road,PASSENGER RAILWAYS,ADMINISTRATION,OYSTER AUTOTOPUP,Not applicable
09/12/16,20.00 ,Travel - Air/Rail/Road,PASSENGER RAILWAYS,ADMINISTRATION,OYSTER BUS AUTOTOP,Not applicable
12/12/16,13.56 ,General Retail and Wholesale,MISCELLANEOUS AND SPECIALTY RETAIL STORES,ADMINISTRATION,AMAZON UK RETAIL AMAZO,Not applicable
12/12/16,20.00 ,Travel - Air/Rail/Road,PASSENGER RAILWAYS,ADMINISTRATION,OYSTER AUTOTOPUP,Not applicable
12/12/16,20.00 ,Travel - Air/Rail/Road,PASSENGER RAILWAYS,ADMINISTRATION,OYSTER BUS AUTOTOP,Not applicable
12/12/16,20.00 ,Travel - Air/Rail/Road,PASSENGER RAILWAYS,ADMINISTRATION,OYSTER AUTOTOPUP,Not applicable
12/12/16,9.49 ,General Retail and Wholesale,MISCELLANEOUS AND SPECIALTY RETAIL STORES,ADMINISTRATION,AMAZON UK RETAIL AMAZO,Not applicable
12/12/16,5.21 ,Books and Periodicals,BOOK STORES,ADMINISTRATION,AMAZON UK MARKETPLACE,Not applicable
12/12/16,7.38 ,Books and Periodicals,BOOK STORES,ADMINISTRATION,AMAZON UK MARKETPLACE,Not applicable
12/12/16,20.00 ,Travel - Air/Rail/Road,PASSENGER RAILWAYS,ADMINISTRATION,OYSTER AUTOTOPUP,Not applicable
12/12/16,20.00 ,Travel - Air/Rail/Road,PASSENGER RAILWAYS,ADMINISTRATION,OYSTER BUS AUTOTOP,Not applicable
13/12/16,12.03 ,Books and Periodicals,BOOK STORES,ADMINISTRATION,AMAZON UK MARKETPLACE,Not applicable
13/12/16,5.07 ,Books and Periodicals,BOOK STORES,ADMINISTRATION,AMAZON UK MARKETPLACE,Not applicable
14/12/16,9.84 ,Books and Periodicals,BOOK STORES,ADMINISTRATION,AMAZON UK MARKETPLACE,Not applicable
14/12/16,25.76 ,Books and Periodicals,BOOK STORES,ADMINISTRATION,AMAZON UK MARKETPLACE,Not applicable
15/12/16,44.95 ,Books and Periodicals,BOOK STORES,ADMINISTRATION,AMAZON UK MARKETPLACE,Not applicable
15/12/16,20.00 ,Travel - Air/Rail/Road,PASSENGER RAILWAYS,ADMINISTRATION,OYSTER AUTOTOPUP,Not applicable
15/12/16,20.00 ,Travel - Air/Rail/Road,PASSENGER RAILWAYS,ADMINISTRATION,OYSTER AUTOTOPUP,Not applicable
15/12/16,20.00 ,Travel - Air/Rail/Road,PASSENGER RAILWAYS,ADMINISTRATION,OYSTER AUTOTOPUP,Not applicable
16/12/16,15.45 ,General Retail and Wholesale,"GROCERY STORES, SUPERMARKETS",ADMINISTRATION,WAITROSE 673,Not applicable
16/12/16,20.00 ,Travel - Air/Rail/Road,PASSENGER RAILWAYS,ADMINISTRATION,OYSTER AUTOTOPUP,Not applicable
16/12/16,100.00 ,General Retail and Wholesale,MISCELLANEOUS AND SPECIALTY RETAIL STORES,ADMINISTRATION,AMAZON UK RETAIL AMAZO,Not applicable
19/12/16,199.00 ,Statutory Bodies,PERMISSION TO WORK IN THE UK CERT FROM UK BORDER AGENCY,ADMINISTRATION,UKBA5571797756,Not applicable
19/12/16,140.00 ,Mail Order / Direct Selling,DIRECT MARKETING-CONTINUITY/SUBSCRIPTION MERCHANTS,ADMINISTRATION,AA REVENUE SERVICES,Not applicable
19/12/16,20.00 ,Travel - Air/Rail/Road,PASSENGER RAILWAYS,ADMINISTRATION,OYSTER AUTOTOPUP,Not applicable
19/12/16,20.00 ,Travel - Air/Rail/Road,PASSENGER RAILWAYS,ADMINISTRATION,OYSTER AUTOTOPUP,Not applicable
22/12/16,20.00 ,Travel - Air/Rail/Road,PASSENGER RAILWAYS,ADMINISTRATION,OYSTER BUS AUTOTOP,Not applicable
26/12/16,20.00 ,Travel - Air/Rail/Road,PASSENGER RAILWAYS,ADMINISTRATION,OYSTER BUS AUTOTOP,Not applicable
26/12/16,20.00 ,Travel - Air/Rail/Road,PASSENGER RAILWAYS,ADMINISTRATION,OYSTER BUS AUTOTOP,Not applicable
26/12/16,2.75 ,Books and Periodicals,BOOK STORES,ADMINISTRATION,AMAZON UK MARKETPLACE,Not applicable
29/12/16,2.92 ,Books and Periodicals,BOOK STORES,ADMINISTRATION,AMAZON UK MARKETPLACE,Not applicable
03/10/16,20.00 ,Travel - Air/Rail/Road,PASSENGER RAILWAYS,EDUCATION AND SOCIAL SERVICES,OYSTER AUTOTOPUP,Not applicable
05/10/16,27.05 ,Travel - Air/Rail/Road,PASSENGER RAILWAYS,EDUCATION AND SOCIAL SERVICES,SOUTHEASTERN WEB,Not applicable
05/10/16,1045.50 ,Hotels and Accommodation,PREMIER INN,EDUCATION AND SOCIAL SERVICES,PREMIER INN,Not applicable
05/10/16,55.20 ,Travel - Air/Rail/Road,PASSENGER RAILWAYS,EDUCATION AND SOCIAL SERVICES,SOUTHERN RAILWAY WEB,Not applicable
06/10/16,208.50 ,Travel - Air/Rail/Road,PASSENGER RAILWAYS,EDUCATION AND SOCIAL SERVICES,SOUTHEASTERN WEB,Not applicable
06/10/16,70.55 ,Travel - Air/Rail/Road,PASSENGER RAILWAYS,EDUCATION AND SOCIAL SERVICES,TRAINLINE.COM LTD,Not applicable
06/10/16,25.40 ,Travel - Air/Rail/Road,PASSENGER RAILWAYS,EDUCATION AND SOCIAL SERVICES,SOUTHEASTERN WEB,Not applicable
06/10/16,48.40 ,Travel - Air/Rail/Road,PASSENGER RAILWAYS,EDUCATION AND SOCIAL SERVICES,SOUTHEASTERN WEB,Not applicable
06/10/16,86.10 ,Travel - Air/Rail/Road,PASSENGER RAILWAYS,EDUCATION AND SOCIAL SERVICES,SOUTHEASTERN WEB,Not applicable
06/10/16,20.00 ,Travel - Air/Rail/Road,PASSENGER RAILWAYS,EDUCATION AND SOCIAL SERVICES,OYSTER BUS AUTOTOP,Not applicable
06/10/16,41.60 ,Travel - Air/Rail/Road,PASSENGER RAILWAYS,EDUCATION AND SOCIAL SERVICES,SOUTHEASTERN WEB,Not applicable
06/10/16,58.00 ,Travel - Air/Rail/Road,PASSENGER RAILWAYS,EDUCATION AND SOCIAL SERVICES,TRAINLINE.COM LTD,Not applicable
06/10/16,283.90 ,Travel - Air/Rail/Road,PASSENGER RAILWAYS,EDUCATION AND SOCIAL SERVICES,TRAINLINE.COM LTD,Not applicable
07/10/16,8.80 ,Travel - Air/Rail/Road,LIMOUSINES AND TAXICABS,EDUCATION AND SOCIAL SERVICES,ALPHA CARS,Not applicable
07/10/16,8.80 ,Travel - Air/Rail/Road,LIMOUSINES AND TAXICABS,EDUCATION AND SOCIAL SERVICES,ALPHA CARS,Not applicable
07/10/16,130.00 ,Professional Services,PROFESSIONAL SERVICES-NOT ELSEWHERE CLASSIFIED,EDUCATION AND SOCIAL SERVICES,CIPD MEMBERSHIP RENEWA,Not applicable
10/10/16,178.00 ,Travel - Air/Rail/Road,PASSENGER RAILWAYS,EDUCATION AND SOCIAL SERVICES,SOUTHEASTERN WEB,Not applicable
10/10/16,12.10 ,Travel - Air/Rail/Road,PASSENGER RAILWAYS,EDUCATION AND SOCIAL SERVICES,SOUTHEASTERN WEB,Not applicable
10/10/16,16.10 ,Travel - Air/Rail/Road,PASSENGER RAILWAYS,EDUCATION AND SOCIAL SERVICES,SOUTHEASTERN WEB,Not applicable
10/10/16,96.20 ,Travel - Air/Rail/Road,PASSENGER RAILWAYS,EDUCATION AND SOCIAL SERVICES,SOUTHEASTERN WEB,Not applicable
10/10/16,20.00 ,Travel - Air/Rail/Road,PASSENGER RAILWAYS,EDUCATION AND SOCIAL SERVICES,OYSTER BUS AUTOTOP,Not applicable
10/10/16,20.00 ,Travel - Air/Rail/Road,PASSENGER RAILWAYS,EDUCATION AND SOCIAL SERVICES,OYSTER AUTOTOPUP,Not applicable
10/10/16,98.00 ,Restaurants and Bars,"EATING PLACES, RESTAURANTS",EDUCATION AND SOCIAL SERVICES,PREMIER INN 44536485,Not applicable
12/10/16,12.10 ,Travel - Air/Rail/Road,PASSENGER RAILWAYS,EDUCATION AND SOCIAL SERVICES,SOUTHEASTERN WEB,Not applicable
12/10/16,12.10 ,Travel - Air/Rail/Road,PASSENGER RAILWAYS,EDUCATION AND SOCIAL SERVICES,SOUTHEASTERN WEB,Not applicable
12/10/16,12.10 ,Travel - Air/Rail/Road,PASSENGER RAILWAYS,EDUCATION AND SOCIAL SERVICES,SOUTHEASTERN WEB,Not applicable
12/10/16,172.20 ,Travel - Air/Rail/Road,PASSENGER RAILWAYS,EDUCATION AND SOCIAL SERVICES,SOUTHEASTERN WEB,Not applicable
12/10/16,20.00 ,Travel - Air/Rail/Road,PASSENGER RAILWAYS,EDUCATION AND SOCIAL SERVICES,OYSTER AUTOTOPUP,Not applicable
12/10/16,97.90 ,Travel - Air/Rail/Road,PASSENGER RAILWAYS,EDUCATION AND SOCIAL SERVICES,GWR WEBSALES ECOM,Not applicable
12/10/16,122.70 ,Travel - Air/Rail/Road,PASSENGER RAILWAYS,EDUCATION AND SOCIAL SERVICES,GWR WEBSALES ECOM,Not applicable
13/10/16,596.45 ,Travel - Air/Rail/Road,ETIHAD AIRWAYS - ETIHADAIR,EDUCATION AND SOCIAL SERVICES,ETIHAD AIRWAYS - ETIHADAIR,Not applicable
14/10/16,87.70 ,Travel - Air/Rail/Road,PASSENGER RAILWAYS,EDUCATION AND SOCIAL SERVICES,SOUTHEASTERN WEB,Not applicable
14/10/16,922.50 ,Hotels and Accommodation,PREMIER INN,EDUCATION AND SOCIAL SERVICES,PREMIER INN,Not applicable
14/10/16,217.15 ,Travel - Air/Rail/Road,PASSENGER RAILWAYS,EDUCATION AND SOCIAL SERVICES,TRAINLINE.COM LTD,Not applicable
14/10/16,25.49 ,Travel - Air/Rail/Road,LIMOUSINES AND TAXICABS,EDUCATION AND SOCIAL SERVICES,GO CARZ,Not applicable
14/10/16,3.25 ,Travel - Air/Rail/Road,LIMOUSINES AND TAXICABS,EDUCATION AND SOCIAL SERVICES,GO CARZ,Not applicable
14/10/16,71.44 ,General Retail and Wholesale,"GROCERY STORES, SUPERMARKETS",EDUCATION AND SOCIAL SERVICES,TESCO STORES 5999,Not applicable
17/10/16,20.00 ,Travel - Air/Rail/Road,PASSENGER RAILWAYS,EDUCATION AND SOCIAL SERVICES,OYSTER BUS AUTOTOP,Not applicable
18/10/16,289.00 ,Travel - Air/Rail/Road,PASSENGER RAILWAYS,EDUCATION AND SOCIAL SERVICES,SOUTHEASTERN WEB,Not applicable
19/10/16,12.10 ,Travel - Air/Rail/Road,PASSENGER RAILWAYS,EDUCATION AND SOCIAL SERVICES,SOUTHEASTERN WEB,Not applicable
19/10/16,12.10 ,Travel - Air/Rail/Road,PASSENGER RAILWAYS,EDUCATION AND SOCIAL SERVICES,SOUTHEASTERN WEB,Not applicable
19/10/16,11.10 ,Travel - Air/Rail/Road,PASSENGER RAILWAYS,EDUCATION AND SOCIAL SERVICES,SOUTHEASTERN WEB,Not applicable
19/10/16,284.90 ,Travel - Air/Rail/Road,PASSENGER RAILWAYS,EDUCATION AND SOCIAL SERVICES,TRAINLINE.COM LTD,Not applicable
19/10/16,57.00 ,Travel - Air/Rail/Road,PASSENGER RAILWAYS,EDUCATION AND SOCIAL SERVICES,TRAINLINE.COM LTD,Not applicable
20/10/16,20.00 ,Travel - Air/Rail/Road,PASSENGER RAILWAYS,EDUCATION AND SOCIAL SERVICES,OYSTER BUS AUTOTOP,Not applicable
24/10/16,89.50 ,Hotels and Accommodation,PREMIER INN,EDUCATION AND SOCIAL SERVICES,PREMIER INN,Not applicable
24/10/16,146.00 ,Restaurants and Bars,"EATING PLACES, RESTAURANTS",EDUCATION AND SOCIAL SERVICES,PREMIER INN 44534170,Not applicable
24/10/16,16.48 ,Travel - Air/Rail/Road,LIMOUSINES AND TAXICABS,EDUCATION AND SOCIAL SERVICES,AVENUE TAXIS LTD,Not applicable
24/10/16,36.00 ,Travel - Air/Rail/Road,LIMOUSINES AND TAXICABS,EDUCATION AND SOCIAL SERVICES,GREEN METRO CARS,Not applicable
24/10/16,143.05 ,Travel - Air/Rail/Road,PASSENGER RAILWAYS,EDUCATION AND SOCIAL SERVICES,TRAINLINE.COM LTD,Not applicable
27/10/16,184.55 ,Travel - Air/Rail/Road,PASSENGER RAILWAYS,EDUCATION AND SOCIAL SERVICES,VIRGINTRAINSEC SERVCS,Not applicable
31/10/16,20.00 ,Travel - Air/Rail/Road,PASSENGER RAILWAYS,EDUCATION AND SOCIAL SERVICES,OYSTER AUTOTOPUP,Not applicable
31/10/16,106.20 ,Travel - Air/Rail/Road,PASSENGER RAILWAYS,EDUCATION AND SOCIAL SERVICES,TRAINLINE.COM LTD,Not applicable
31/10/16,24.20 ,Travel - Air/Rail/Road,LIMOUSINES AND TAXICABS,EDUCATION AND SOCIAL SERVICES,APL /STREETCA,Not applicable
01/11/16,99.00 ,Travel - Air/Rail/Road,PASSENGER RAILWAYS,EDUCATION AND SOCIAL SERVICES,SOUTHEASTERN WEB,Not applicable
01/11/16,27.00 ,Travel - Air/Rail/Road,LIMOUSINES AND TAXICABS,EDUCATION AND SOCIAL SERVICES,255 TAXIS LTD,Not applicable
01/11/16,17.60 ,Travel - Air/Rail/Road,LIMOUSINES AND TAXICABS,EDUCATION AND SOCIAL SERVICES,DISCOUNT CABS LINCOLN,Not applicable
02/11/16,416.71 ,Hotels and Accommodation,"LODGING-HOTELS,MOTELS,RESORTS-NOT CLASSIFIED",EDUCATION AND SOCIAL SERVICES,AN CRUISCIN LAN,Not applicable
02/11/16,15.00 ,Travel - Air/Rail/Road,LIMOUSINES AND TAXICABS,EDUCATION AND SOCIAL SERVICES,TOWN TAXIS,Not applicable
02/11/16,173.20 ,Travel - Air/Rail/Road,PASSENGER RAILWAYS,EDUCATION AND SOCIAL SERVICES,VIRGIN TRAINS,Not applicable
02/11/16,55.20 ,Travel - Air/Rail/Road,PASSENGER RAILWAYS,EDUCATION AND SOCIAL SERVICES,SOUTHERN RAILWAY WEB,Not applicable
02/11/16,241.30 ,Travel - Air/Rail/Road,PASSENGER RAILWAYS,EDUCATION AND SOCIAL SERVICES,GWR WEBSALES ECOM,Not applicable
02/11/16,-50.90 ,Travel - Air/Rail/Road,PASSENGER RAILWAYS,EDUCATION AND SOCIAL SERVICES,VIRGINTRAINS.CO.UK,Not applicable
03/11/16,245.00 ,Travel - Air/Rail/Road,PASSENGER RAILWAYS,EDUCATION AND SOCIAL SERVICES,SOUTHEASTERN WEB,Not applicable
03/11/16,153.50 ,Travel - Air/Rail/Road,PASSENGER RAILWAYS,EDUCATION AND SOCIAL SERVICES,VIRGIN TRAINS,Not applicable
04/11/16,40.20 ,Travel - Air/Rail/Road,PASSENGER RAILWAYS,EDUCATION AND SOCIAL SERVICES,SOUTHEASTERN WEB,Not applicable
07/11/16,24.40 ,Travel - Air/Rail/Road,PASSENGER RAILWAYS,EDUCATION AND SOCIAL SERVICES,SOUTHEASTERN WEB,Not applicable
07/11/16,9.00 ,Travel - Air/Rail/Road,PASSENGER RAILWAYS,EDUCATION AND SOCIAL SERVICES,SOUTHEASTERN WEB,Not applicable
07/11/16,-198.50 ,Travel - Air/Rail/Road,PASSENGER RAILWAYS,EDUCATION AND SOCIAL SERVICES,SOUTHEASTERN WEB,Not applicable
08/11/16,245.00 ,Travel - Air/Rail/Road,PASSENGER RAILWAYS,EDUCATION AND SOCIAL SERVICES,SOUTHERN RAILWAY WEB,Not applicable
08/11/16,245.00 ,Travel - Air/Rail/Road,PASSENGER RAILWAYS,EDUCATION AND SOCIAL SERVICES,SOUTHERN RAILWAY WEB,Not applicable
08/11/16,245.00 ,Travel - Air/Rail/Road,PASSENGER RAILWAYS,EDUCATION AND SOCIAL SERVICES,SOUTHERN RAILWAY WEB,Not applicable
08/11/16,27.05 ,Travel - Air/Rail/Road,PASSENGER RAILWAYS,EDUCATION AND SOCIAL SERVICES,SOUTHERN RAILWAY WEB,Not applicable
08/11/16,133.50 ,Travel - Air/Rail/Road,PASSENGER RAILWAYS,EDUCATION AND SOCIAL SERVICES,SOUTHEASTERN WEB,Not applicable
08/11/16,12.10 ,Travel - Air/Rail/Road,PASSENGER RAILWAYS,EDUCATION AND SOCIAL SERVICES,SOUTHEASTERN WEB,Not applicable
08/11/16,46.00 ,Travel - Air/Rail/Road,PASSENGER RAILWAYS,EDUCATION AND SOCIAL SERVICES,SOUTHEASTERN WEB,Not applicable
08/11/16,46.00 ,Travel - Air/Rail/Road,PASSENGER RAILWAYS,EDUCATION AND SOCIAL SERVICES,SOUTHEASTERN WEB,Not applicable
08/11/16,50.00 ,"Vehicles, Servicing and Spares",AUTOMOTIVE SERVICE SHOPS,EDUCATION AND SOCIAL SERVICES,THE TYRE BAY,Not applicable
09/11/16,635.41 ,Travel - Air/Rail/Road,TRAVEL AGENCIES AND TOUR OPERATORS,EDUCATION AND SOCIAL SERVICES,WWW.TRAVELUP.CO.UK,Not applicable
09/11/16,10.00 ,Travel - Air/Rail/Road,LIMOUSINES AND TAXICABS,EDUCATION AND SOCIAL SERVICES,FOLKESTONE TAXI COMPAN,Not applicable
09/11/16,14.00 ,Travel - Air/Rail/Road,LIMOUSINES AND TAXICABS,EDUCATION AND SOCIAL SERVICES,THE WHITE CAB CO,Not applicable
09/11/16,30.80 ,Travel - Air/Rail/Road,PASSENGER RAILWAYS,EDUCATION AND SOCIAL SERVICES,SOUTHEASTERN WEB,Not applicable
14/11/16,117.50 ,Restaurants and Bars,"EATING PLACES, RESTAURANTS",EDUCATION AND SOCIAL SERVICES,PREMIER INN 44534170,Not applicable
14/11/16,15.00 ,Travel - Air/Rail/Road,LIMOUSINES AND TAXICABS,EDUCATION AND SOCIAL SERVICES,MAYFAIR CARS,Not applicable
15/11/16,112.00 ,Travel - Air/Rail/Road,PASSENGER RAILWAYS,EDUCATION AND SOCIAL SERVICES,GWR WEBSALES ECOM,Not applicable
17/11/16,9.00 ,Travel - Air/Rail/Road,PASSENGER RAILWAYS,EDUCATION AND SOCIAL SERVICES,SOUTHEASTERN WEB,Not applicable
17/11/16,35.40 ,Travel - Air/Rail/Road,PASSENGER RAILWAYS,EDUCATION AND SOCIAL SERVICES,SOUTHEASTERN WEB,Not applicable
17/11/16,41.70 ,Travel - Air/Rail/Road,PASSENGER RAILWAYS,EDUCATION AND SOCIAL SERVICES,SOUTHEASTERN WEB,Not applicable
17/11/16,96.80 ,Travel - Air/Rail/Road,LIMOUSINES AND TAXICABS,EDUCATION AND SOCIAL SERVICES,APL /STREETCA,Not applicable
17/11/16,73.08 ,Print and Advertising,ADVERTISING SERVICES,EDUCATION AND SOCIAL SERVICES,WEB 3 RESOURCE LTD,Not applicable
17/11/16,21.00 ,Travel - Air/Rail/Road,LIMOUSINES AND TAXICABS,EDUCATION AND SOCIAL SERVICES,VERIFONE TAXI/PRIVATE,Not applicable
17/11/16,6.20 ,Travel - Air/Rail/Road,PASSENGER RAILWAYS,EDUCATION AND SOCIAL SERVICES,VIRGIN TRAINS,Not applicable
17/11/16,-87.90 ,Travel - Air/Rail/Road,PASSENGER RAILWAYS,EDUCATION AND SOCIAL SERVICES,GWR WEBSALES ECOM,Not applicable
18/11/16,615.00 ,Hotels and Accommodation,TRAVELODGE,EDUCATION AND SOCIAL SERVICES,TRAVELODGE,Not applicable
18/11/16,39.90 ,Travel - Air/Rail/Road,PASSENGER RAILWAYS,EDUCATION AND SOCIAL SERVICES,GREATER ANGLIA TRAINS,Not applicable
18/11/16,-55.20 ,Travel - Air/Rail/Road,PASSENGER RAILWAYS,EDUCATION AND SOCIAL SERVICES,SOUTHERN RAILWAY WEB,Not applicable
21/11/16,56.00 ,Hotels and Accommodation,"LODGING-HOTELS,MOTELS,RESORTS-NOT CLASSIFIED",EDUCATION AND SOCIAL SERVICES,HOLIDAYINN E MIDDLESBR,Not applicable
21/11/16,763.00 ,Hotels and Accommodation,PREMIER INN,EDUCATION AND SOCIAL SERVICES,PREMIER INN,Not applicable
24/11/16,78.50 ,Hotels and Accommodation,"LODGING-HOTELS,MOTELS,RESORTS-NOT CLASSIFIED",EDUCATION AND SOCIAL SERVICES,MOTEL ONE MANCHESTER P,Not applicable
24/11/16,78.50 ,Hotels and Accommodation,"LODGING-HOTELS,MOTELS,RESORTS-NOT CLASSIFIED",EDUCATION AND SOCIAL SERVICES,MOTEL ONE MANCHESTER P,Not applicable
25/11/16,12.10 ,Travel - Air/Rail/Road,PASSENGER RAILWAYS,EDUCATION AND SOCIAL SERVICES,SOUTHEASTERN WEB,Not applicable
25/11/16,47.55 ,Travel - Air/Rail/Road,PASSENGER RAILWAYS,EDUCATION AND SOCIAL SERVICES,SOUTHEASTERN WEB,Not applicable
25/11/16,610.00 ,Hotels and Accommodation,TRAVELODGE,EDUCATION AND SOCIAL SERVICES,TRAVELODGE,Not applicable
25/11/16,113.01 ,Travel - Air/Rail/Road,TRAVEL AGENCIES AND TOUR OPERATORS,EDUCATION AND SOCIAL SERVICES,HOTELS COM,Not applicable
25/11/16,81.60 ,Travel - Air/Rail/Road,PASSENGER RAILWAYS,EDUCATION AND SOCIAL SERVICES,SOUTHEASTERN WEB,Not applicable
25/11/16,31.80 ,Travel - Air/Rail/Road,PASSENGER RAILWAYS,EDUCATION AND SOCIAL SERVICES,VIRGIN TRAINS,Not applicable
25/11/16,61.50 ,Travel - Air/Rail/Road,PASSENGER RAILWAYS,EDUCATION AND SOCIAL SERVICES,VIRGIN TRAINS,Not applicable
25/11/16,49.10 ,Travel - Air/Rail/Road,PASSENGER RAILWAYS,EDUCATION AND SOCIAL SERVICES,STAGECOACH SW TRAINS W,Not applicable
28/11/16,45.00 ,Travel - Air/Rail/Road,LIMOUSINES AND TAXICABS,EDUCATION AND SOCIAL SERVICES,AMBER CARS,Not applicable
28/11/16,173.05 ,Travel - Air/Rail/Road,PASSENGER RAILWAYS,EDUCATION AND SOCIAL SERVICES,VIRGINTRAINSEC SERVCS,Not applicable
29/11/16,20.00 ,Hotels and Accommodation,"LODGING-HOTELS,MOTELS,RESORTS-NOT CLASSIFIED",EDUCATION AND SOCIAL SERVICES,THE MET,Not applicable
29/11/16,40.00 ,Travel - Air/Rail/Road,LIMOUSINES AND TAXICABS,EDUCATION AND SOCIAL SERVICES,PCS DIAL A CAB,Not applicable
30/11/16,-63.08 ,Print and Advertising,ADVERTISING SERVICES,EDUCATION AND SOCIAL SERVICES,WEB 3 RESOURCE LTD,Not applicable
01/12/16,11.90 ,Travel - Air/Rail/Road,PASSENGER RAILWAYS,EDUCATION AND SOCIAL SERVICES,SOUTHEASTERN WEB,Not applicable
01/12/16,110.90 ,Travel - Air/Rail/Road,PASSENGER RAILWAYS,EDUCATION AND SOCIAL SERVICES,SOUTHEASTERN WEB,Not applicable
01/12/16,13.00 ,Travel - Air/Rail/Road,PASSENGER RAILWAYS,EDUCATION AND SOCIAL SERVICES,STAGECOACH SW TRAINS W,Not applicable
02/12/16,122.70 ,Travel - Air/Rail/Road,PASSENGER RAILWAYS,EDUCATION AND SOCIAL SERVICES,SOUTHEASTERN WEB,Not applicable
06/12/16,694.40 ,Travel - Air/Rail/Road,PASSENGER RAILWAYS,EDUCATION AND SOCIAL SERVICES,VIRGIN TRAINS,Not applicable
06/12/16,22.00 ,Travel - Air/Rail/Road,LIMOUSINES AND TAXICABS,EDUCATION AND SOCIAL SERVICES,SHEPPERTON STATION CAR,Not applicable
07/12/16,26.50 ,Travel - Air/Rail/Road,LIMOUSINES AND TAXICABS,EDUCATION AND SOCIAL SERVICES,STAFFORDTAXI,Not applicable
08/12/16,414.49 ,General Retail and Wholesale,ELECTRONIC SALES,EDUCATION AND SOCIAL SERVICES,PC WORLD ONLINE,Not applicable
08/12/16,1687.50 ,Leisure Activities,"THEATRICAL PRODUCERS(EXCL MOTION PIX),TICKET AGNCY",EDUCATION AND SOCIAL SERVICES,THE WALT DISNEY CO,Not applicable
09/12/16,137.60 ,Travel - Air/Rail/Road,PASSENGER RAILWAYS,EDUCATION AND SOCIAL SERVICES,SOUTHEASTERN WEB,Not applicable
09/12/16,70.20 ,Travel - Air/Rail/Road,PASSENGER RAILWAYS,EDUCATION AND SOCIAL SERVICES,SOUTHEASTERN WEB,Not applicable
09/12/16,20.00 ,Travel - Air/Rail/Road,PASSENGER RAILWAYS,EDUCATION AND SOCIAL SERVICES,OYSTER BUS AUTOSET,Not applicable
09/12/16,89.50 ,Hotels and Accommodation,PREMIER INN,EDUCATION AND SOCIAL SERVICES,PREMIER INN,Not applicable
12/12/16,20.00 ,Travel - Air/Rail/Road,PASSENGER RAILWAYS,EDUCATION AND SOCIAL SERVICES,OYSTER BUS AUTOTOP,Not applicable
12/12/16,41.60 ,Travel - Air/Rail/Road,PASSENGER RAILWAYS,EDUCATION AND SOCIAL SERVICES,VIRGIN TRAINS,Not applicable
13/12/16,250.00 ,Hotels and Accommodation,"LODGING-HOTELS,MOTELS,RESORTS-NOT CLASSIFIED",EDUCATION AND SOCIAL SERVICES,WWW.GONATIVE.COM,Not applicable
13/12/16,291.70 ,Travel - Air/Rail/Road,PASSENGER RAILWAYS,EDUCATION AND SOCIAL SERVICES,VIRGIN TRAINS,Not applicable
14/12/16,411.95 ,Travel - Air/Rail/Road,PASSENGER RAILWAYS,EDUCATION AND SOCIAL SERVICES,SOUTHEASTERN WEB,Not applicable
14/12/16,61.60 ,Travel - Air/Rail/Road,LIMOUSINES AND TAXICABS,EDUCATION AND SOCIAL SERVICES,STREET CARS MANCHESTER,Not applicable
14/12/16,12.10 ,Travel - Air/Rail/Road,PASSENGER RAILWAYS,EDUCATION AND SOCIAL SERVICES,VIRGIN TRAINS,Not applicable
15/12/16,357.00 ,Leisure Activities,"THEATRICAL PRODUCERS(EXCL MOTION PIX),TICKET AGNCY",EDUCATION AND SOCIAL SERVICES,WINTER WONDERLAND/PWR,Not applicable
15/12/16,76.35 ,Travel - Air/Rail/Road,PASSENGER RAILWAYS,EDUCATION AND SOCIAL SERVICES,VIRGIN TRAINS,Not applicable
19/12/16,249.00 ,Travel - Air/Rail/Road,PASSENGER RAILWAYS,EDUCATION AND SOCIAL SERVICES,SOUTHEASTERN WEB,Not applicable
19/12/16,31.90 ,Travel - Air/Rail/Road,PASSENGER RAILWAYS,EDUCATION AND SOCIAL SERVICES,SOUTHEASTERN WEB,Not applicable
19/12/16,135.30 ,Travel - Air/Rail/Road,PASSENGER RAILWAYS,EDUCATION AND SOCIAL SERVICES,SOUTHEASTERN WEB,Not applicable
19/12/16,74.00 ,Hotels and Accommodation,PREMIER INN,EDUCATION AND SOCIAL SERVICES,PREMIER INN,Not applicable
19/12/16,255.98 ,Travel - Air/Rail/Road,AER LINGUS,EDUCATION AND SOCIAL SERVICES,AER LINGUS,Not applicable
20/12/16,-245.00 ,Travel - Air/Rail/Road,PASSENGER RAILWAYS,EDUCATION AND SOCIAL SERVICES,SOUTHEASTERN WEB,Not applicable
20/12/16,-15.85 ,Travel - Air/Rail/Road,PASSENGER RAILWAYS,EDUCATION AND SOCIAL SERVICES,SOUTHEASTERN WEB,Not applicable
21/12/16,254.40 ,Travel - Air/Rail/Road,PASSENGER RAILWAYS,EDUCATION AND SOCIAL SERVICES,SOUTHEASTERN WEB,Not applicable
21/12/16,12.30 ,Travel - Air/Rail/Road,PASSENGER RAILWAYS,EDUCATION AND SOCIAL SERVICES,SOUTHEASTERN WEB,Not applicable
22/12/16,20.00 ,Travel - Air/Rail/Road,PASSENGER RAILWAYS,EDUCATION AND SOCIAL SERVICES,OYSTER AUTOTOPUP,Not applicable
22/12/16,81.98 ,Travel - Air/Rail/Road,AER LINGUS,EDUCATION AND SOCIAL SERVICES,AER LINGUS,Not applicable
22/12/16,261.98 ,Travel - Air/Rail/Road,AER LINGUS,EDUCATION AND SOCIAL SERVICES,AER LINGUS,Not applicable
22/12/16,339.02 ,Travel - Air/Rail/Road,AER LINGUS,EDUCATION AND SOCIAL SERVICES,AER LINGUS,Not applicable
26/12/16,-235.00 ,Travel - Air/Rail/Road,PASSENGER RAILWAYS,EDUCATION AND SOCIAL SERVICES,SOUTHERN RAILWAY WEB,Not applicable
26/12/16,53.00 ,Travel - Air/Rail/Road,AER LINGUS,EDUCATION AND SOCIAL SERVICES,AER LINGUS,Not applicable
29/12/16,12.30 ,Travel - Air/Rail/Road,PASSENGER RAILWAYS,EDUCATION AND SOCIAL SERVICES,SOUTHEASTERN WEB,Not applicable
29/12/16,12.30 ,Travel - Air/Rail/Road,PASSENGER RAILWAYS,EDUCATION AND SOCIAL SERVICES,SOUTHEASTERN WEB,Not applicable
29/12/16,210.00 ,Travel - Air/Rail/Road,PASSENGER RAILWAYS,EDUCATION AND SOCIAL SERVICES,SOUTHEASTERN WEB,Not applicable
29/12/16,17.50 ,Travel - Air/Rail/Road,PASSENGER RAILWAYS,EDUCATION AND SOCIAL SERVICES,SOUTHEASTERN WEB,Not applicable
29/12/16,73.60 ,Travel - Air/Rail/Road,PASSENGER RAILWAYS,EDUCATION AND SOCIAL SERVICES,VIRGIN TRAINS,Not applicable
03/10/16,20.00 ,Travel - Air/Rail/Road,PASSENGER RAILWAYS,HOUSING AND REGENERATION,OYSTER AUTOTOPUP,Not applicable
03/10/16,20.00 ,Travel - Air/Rail/Road,PASSENGER RAILWAYS,HOUSING AND REGENERATION,OYSTER AUTOTOPUP,Not applicable
03/10/16,20.00 ,Travel - Air/Rail/Road,PASSENGER RAILWAYS,HOUSING AND REGENERATION,OYSTER AUTOTOPUP,Not applicable
03/10/16,20.00 ,Travel - Air/Rail/Road,PASSENGER RAILWAYS,ENVIRONMENT AND COMMUNITY SERVICES,OYSTER AUTOTOPUP,Not applicable
03/10/16,20.00 ,Travel - Air/Rail/Road,PASSENGER RAILWAYS,ENVIRONMENT AND COMMUNITY SERVICES,OYSTER AUTOTOPUP,Not applicable
03/10/16,20.00 ,Travel - Air/Rail/Road,PASSENGER RAILWAYS,ENVIRONMENT AND COMMUNITY SERVICES,OYSTER AUTOTOPUP,Not applicable
03/10/16,20.00 ,Travel - Air/Rail/Road,PASSENGER RAILWAYS,ENVIRONMENT AND COMMUNITY SERVICES,OYSTER AUTOTOPUP,Not applicable
03/10/16,20.00 ,Travel - Air/Rail/Road,PASSENGER RAILWAYS,ENVIRONMENT AND COMMUNITY SERVICES,OYSTER AUTOTOPUP,Not applicable
03/10/16,20.00 ,Travel - Air/Rail/Road,PASSENGER RAILWAYS,ENVIRONMENT AND COMMUNITY SERVICES,OYSTER BUS AUTOTOP,Not applicable
03/10/16,20.00 ,Travel - Air/Rail/Road,PASSENGER RAILWAYS,ENVIRONMENT AND COMMUNITY SERVICES,OYSTER AUTOTOPUP,Not applicable
03/10/16,20.00 ,Travel - Air/Rail/Road,PASSENGER RAILWAYS,ENVIRONMENT AND COMMUNITY SERVICES,OYSTER AUTOTOPUP,Not applicable
03/10/16,20.00 ,Travel - Air/Rail/Road,PASSENGER RAILWAYS,ENVIRONMENT AND COMMUNITY SERVICES,OYSTER BUS AUTOTOP,Not applicable
03/10/16,20.00 ,Travel - Air/Rail/Road,PASSENGER RAILWAYS,ENVIRONMENT AND COMMUNITY SERVICES,OYSTER BUS AUTOTOP,Not applicable
03/10/16,20.00 ,Travel - Air/Rail/Road,PASSENGER RAILWAYS,ENVIRONMENT AND COMMUNITY SERVICES,OYSTER AUTOTOPUP,Not applicable
03/10/16,20.00 ,Travel - Air/Rail/Road,PASSENGER RAILWAYS,ENVIRONMENT AND COMMUNITY SERVICES,OYSTER BUS AUTOTOP,Not applicable
03/10/16,167.50 ,Statutory Bodies,GOVERNMENT SERVICES-NOT ELSEWHERE CLASSIFIED,ENVIRONMENT AND COMMUNITY SERVICES,DVLA VEHICLE TAX,Not applicable
03/10/16,167.50 ,Statutory Bodies,GOVERNMENT SERVICES-NOT ELSEWHERE CLASSIFIED,ENVIRONMENT AND COMMUNITY SERVICES,DVLA VEHICLE TAX,Not applicable
03/10/16,272.50 ,Statutory Bodies,GOVERNMENT SERVICES-NOT ELSEWHERE CLASSIFIED,ENVIRONMENT AND COMMUNITY SERVICES,DVLA VEHICLE TAX,Not applicable
03/10/16,652.50 ,Statutory Bodies,GOVERNMENT SERVICES-NOT ELSEWHERE CLASSIFIED,ENVIRONMENT AND COMMUNITY SERVICES,DVLA VEHICLE TAX,Not applicable
03/10/16,132.50 ,Statutory Bodies,GOVERNMENT SERVICES-NOT ELSEWHERE CLASSIFIED,ENVIRONMENT AND COMMUNITY SERVICES,DVLA VEHICLE TAX,Not applicable
03/10/16,132.50 ,Statutory Bodies,GOVERNMENT SERVICES-NOT ELSEWHERE CLASSIFIED,ENVIRONMENT AND COMMUNITY SERVICES,DVLA VEHICLE TAX,Not applicable
03/10/16,25.00 ,Statutory Bodies,GOVERNMENT SERVICES-NOT ELSEWHERE CLASSIFIED,ENVIRONMENT AND COMMUNITY SERVICES,DVLA DUP REG DOC,Not applicable
03/10/16,51.00 ,Hotels and Accommodation,EMERGENCY ACCOMMODATION,HOUSING AND REGENERATION,TRAVELODGE,Not applicable
03/10/16,112.00 ,Hotels and Accommodation,EMERGENCY ACCOMMODATION,HOUSING AND REGENERATION,TRAVELODGE,Not applicable
03/10/16,160.00 ,Hotels and Accommodation,EMERGENCY ACCOMMODATION,HOUSING AND REGENERATION,TRAVELODGE,Not applicable
03/10/16,200.00 ,Hotels and Accommodation,EMERGENCY ACCOMMODATION,HOUSING AND REGENERATION,TRAVELODGE,Not applicable
04/10/16,20.00 ,Travel - Air/Rail/Road,PASSENGER RAILWAYS,ENVIRONMENT AND COMMUNITY SERVICES,OYSTER BUS AUTOSET,Not applicable
04/10/16,20.00 ,Travel - Air/Rail/Road,PASSENGER RAILWAYS,ENVIRONMENT AND COMMUNITY SERVICES,OYSTER BUS AUTOTOP,Not applicable
04/10/16,83.99 ,Hotels and Accommodation,PREMIER INN,HOUSING AND REGENERATION,PREMIER INN,Not applicable
06/10/16,20.00 ,Travel - Air/Rail/Road,PASSENGER RAILWAYS,ENVIRONMENT AND COMMUNITY SERVICES,OYSTER AUTOSETTLE,Not applicable
06/10/16,20.00 ,Travel - Air/Rail/Road,PASSENGER RAILWAYS,ENVIRONMENT AND COMMUNITY SERVICES,OYSTER AUTOTOPUP,Not applicable
06/10/16,20.00 ,Travel - Air/Rail/Road,PASSENGER RAILWAYS,ENVIRONMENT AND COMMUNITY SERVICES,OYSTER BUS AUTOTOP,Not applicable
06/10/16,20.00 ,Travel - Air/Rail/Road,PASSENGER RAILWAYS,ENVIRONMENT AND COMMUNITY SERVICES,OYSTER AUTOTOPUP,Not applicable
06/10/16,20.00 ,Travel - Air/Rail/Road,PASSENGER RAILWAYS,ENVIRONMENT AND COMMUNITY SERVICES,OYSTER AUTOTOPUP,Not applicable
07/10/16,15.00 ,Travel - Air/Rail/Road,PASSENGER RAILWAYS,ENVIRONMENT AND COMMUNITY SERVICES,OYSTER ISSUE WEB,Not applicable
07/10/16,20.00 ,Travel - Air/Rail/Road,PASSENGER RAILWAYS,ENVIRONMENT AND COMMUNITY SERVICES,OYSTER BUS AUTOTOP,Not applicable
07/10/16,20.00 ,Travel - Air/Rail/Road,PASSENGER RAILWAYS,ENVIRONMENT AND COMMUNITY SERVICES,OYSTER AUTOTOPUP,Not applicable
10/10/16,20.00 ,Travel - Air/Rail/Road,PASSENGER RAILWAYS,ENVIRONMENT AND COMMUNITY SERVICES,OYSTER BUS AUTOTOP,Not applicable
10/10/16,20.00 ,Travel - Air/Rail/Road,PASSENGER RAILWAYS,ENVIRONMENT AND COMMUNITY SERVICES,OYSTER BUS AUTOTOP,Not applicable
10/10/16,20.00 ,Travel - Air/Rail/Road,PASSENGER RAILWAYS,ENVIRONMENT AND COMMUNITY SERVICES,OYSTER AUTOTOPUP,Not applicable
10/10/16,20.00 ,Travel - Air/Rail/Road,PASSENGER RAILWAYS,ENVIRONMENT AND COMMUNITY SERVICES,OYSTER BUS AUTOTOP,Not applicable
10/10/16,20.00 ,Travel - Air/Rail/Road,PASSENGER RAILWAYS,ENVIRONMENT AND COMMUNITY SERVICES,OYSTER BUS AUTOTOP,Not applicable
10/10/16,20.00 ,Travel - Air/Rail/Road,PASSENGER RAILWAYS,ENVIRONMENT AND COMMUNITY SERVICES,OYSTER BUS AUTOTOP,Not applicable
10/10/16,20.00 ,Travel - Air/Rail/Road,PASSENGER RAILWAYS,ENVIRONMENT AND COMMUNITY SERVICES,OYSTER AUTOTOPUP,Not applicable
10/10/16,20.00 ,Travel - Air/Rail/Road,PASSENGER RAILWAYS,ENVIRONMENT AND COMMUNITY SERVICES,OYSTER AUTOTOPUP,Not applicable
10/10/16,20.00 ,Travel - Air/Rail/Road,PASSENGER RAILWAYS,ENVIRONMENT AND COMMUNITY SERVICES,OYSTER BUS AUTOTOP,Not applicable
10/10/16,52.95 ,Hotels and Accommodation,EMERGENCY ACCOMMODATION,HOUSING AND REGENERATION,TRAVELODGE,Not applicable
11/10/16,15.00 ,Travel - Air/Rail/Road,PASSENGER RAILWAYS,HOUSING AND REGENERATION,OYSTER ISSUE WEB,Not applicable
11/10/16,15.00 ,Travel - Air/Rail/Road,PASSENGER RAILWAYS,HOUSING AND REGENERATION,OYSTER ISSUE WEB,Not applicable
11/10/16,15.00 ,Travel - Air/Rail/Road,PASSENGER RAILWAYS,HOUSING AND REGENERATION,OYSTER ISSUE WEB,Not applicable
11/10/16,15.00 ,Travel - Air/Rail/Road,PASSENGER RAILWAYS,HOUSING AND REGENERATION,OYSTER ISSUE WEB,Not applicable
11/10/16,20.00 ,Travel - Air/Rail/Road,PASSENGER RAILWAYS,ENVIRONMENT AND COMMUNITY SERVICES,OYSTER AUTOSETTLE,Not applicable
11/10/16,20.00 ,Travel - Air/Rail/Road,PASSENGER RAILWAYS,ENVIRONMENT AND COMMUNITY SERVICES,OYSTER AUTOSETTLE,Not applicable
13/10/16,15.00 ,Travel - Air/Rail/Road,PASSENGER RAILWAYS,HOUSING AND REGENERATION,OYSTER ISSUE WEB,Not applicable
13/10/16,15.00 ,Travel - Air/Rail/Road,PASSENGER RAILWAYS,HOUSING AND REGENERATION,OYSTER ISSUE WEB,Not applicable
13/10/16,15.00 ,Travel - Air/Rail/Road,PASSENGER RAILWAYS,HOUSING AND REGENERATION,OYSTER ISSUE WEB,Not applicable
13/10/16,15.00 ,Travel - Air/Rail/Road,PASSENGER RAILWAYS,HOUSING AND REGENERATION,OYSTER ISSUE WEB,Not applicable
13/10/16,15.00 ,Travel - Air/Rail/Road,PASSENGER RAILWAYS,HOUSING AND REGENERATION,OYSTER ISSUE WEB,Not applicable
13/10/16,15.00 ,Travel - Air/Rail/Road,PASSENGER RAILWAYS,HOUSING AND REGENERATION,OYSTER ISSUE WEB,Not applicable
13/10/16,15.00 ,Travel - Air/Rail/Road,PASSENGER RAILWAYS,HOUSING AND REGENERATION,OYSTER ISSUE WEB,Not applicable
13/10/16,20.00 ,Travel - Air/Rail/Road,PASSENGER RAILWAYS,ENVIRONMENT AND COMMUNITY SERVICES,OYSTER AUTOTOPUP,Not applicable
13/10/16,20.00 ,Travel - Air/Rail/Road,PASSENGER RAILWAYS,ENVIRONMENT AND COMMUNITY SERVICES,OYSTER AUTOTOPUP,Not applicable
13/10/16,65.00 ,Travel - Air/Rail/Road,"BRIDGE AND ROAD FEES, TOLLS",ENVIRONMENT AND COMMUNITY SERVICES,TFL ROAD CHARGE,Not applicable
14/10/16,20.00 ,Travel - Air/Rail/Road,PASSENGER RAILWAYS,HOUSING AND REGENERATION,OYSTER AUTOTOPUP,Not applicable
14/10/16,20.00 ,Travel - Air/Rail/Road,PASSENGER RAILWAYS,HOUSING AND REGENERATION,OYSTER AUTOTOPUP,Not applicable
14/10/16,20.00 ,Travel - Air/Rail/Road,PASSENGER RAILWAYS,ENVIRONMENT AND COMMUNITY SERVICES,OYSTER BUS AUTOTOP,Not applicable
14/10/16,20.00 ,Travel - Air/Rail/Road,PASSENGER RAILWAYS,ENVIRONMENT AND COMMUNITY SERVICES,OYSTER BUS AUTOTOP,Not applicable
14/10/16,20.00 ,Travel - Air/Rail/Road,PASSENGER RAILWAYS,ENVIRONMENT AND COMMUNITY SERVICES,OYSTER BUS AUTOTOP,Not applicable
14/10/16,20.00 ,Travel - Air/Rail/Road,PASSENGER RAILWAYS,ENVIRONMENT AND COMMUNITY SERVICES,OYSTER AUTOTOPUP,Not applicable
17/10/16,20.00 ,Travel - Air/Rail/Road,PASSENGER RAILWAYS,HOUSING AND REGENERATION,OYSTER AUTOTOPUP,Not applicable
17/10/16,20.00 ,Travel - Air/Rail/Road,PASSENGER RAILWAYS,HOUSING AND REGENERATION,OYSTER AUTOTOPUP,Not applicable
17/10/16,20.00 ,Travel - Air/Rail/Road,PASSENGER RAILWAYS,HOUSING AND REGENERATION,OYSTER AUTOTOPUP,Not applicable
17/10/16,20.00 ,Travel - Air/Rail/Road,PASSENGER RAILWAYS,HOUSING AND REGENERATION,OYSTER BUS AUTOTOP,Not applicable
17/10/16,20.00 ,Travel - Air/Rail/Road,PASSENGER RAILWAYS,HOUSING AND REGENERATION,OYSTER AUTOTOPUP,Not applicable
17/10/16,20.00 ,Travel - Air/Rail/Road,PASSENGER RAILWAYS,ENVIRONMENT AND COMMUNITY SERVICES,OYSTER AUTOTOPUP,Not applicable
17/10/16,20.00 ,Travel - Air/Rail/Road,PASSENGER RAILWAYS,ENVIRONMENT AND COMMUNITY SERVICES,OYSTER BUS AUTOTOP,Not applicable
17/10/16,20.00 ,Travel - Air/Rail/Road,PASSENGER RAILWAYS,ENVIRONMENT AND COMMUNITY SERVICES,OYSTER BUS AUTOTOP,Not applicable
17/10/16,20.00 ,Travel - Air/Rail/Road,PASSENGER RAILWAYS,ENVIRONMENT AND COMMUNITY SERVICES,OYSTER AUTOTOPUP,Not applicable
17/10/16,20.00 ,Travel - Air/Rail/Road,PASSENGER RAILWAYS,ENVIRONMENT AND COMMUNITY SERVICES,OYSTER AUTOTOPUP,Not applicable
17/10/16,20.00 ,Travel - Air/Rail/Road,PASSENGER RAILWAYS,ENVIRONMENT AND COMMUNITY SERVICES,OYSTER AUTOTOPUP,Not applicable
17/10/16,20.00 ,Travel - Air/Rail/Road,PASSENGER RAILWAYS,ENVIRONMENT AND COMMUNITY SERVICES,OYSTER AUTOTOPUP,Not applicable
17/10/16,20.00 ,Travel - Air/Rail/Road,PASSENGER RAILWAYS,ENVIRONMENT AND COMMUNITY SERVICES,OYSTER AUTOTOPUP,Not applicable
17/10/16,20.00 ,Travel - Air/Rail/Road,PASSENGER RAILWAYS,ENVIRONMENT AND COMMUNITY SERVICES,OYSTER AUTOTOPUP,Not applicable
17/10/16,20.00 ,Travel - Air/Rail/Road,PASSENGER RAILWAYS,ENVIRONMENT AND COMMUNITY SERVICES,OYSTER AUTOSETTLE,Not applicable
17/10/16,20.00 ,Travel - Air/Rail/Road,PASSENGER RAILWAYS,ENVIRONMENT AND COMMUNITY SERVICES,OYSTER BUS AUTOTOP,Not applicable
17/10/16,20.00 ,Travel - Air/Rail/Road,PASSENGER RAILWAYS,ENVIRONMENT AND COMMUNITY SERVICES,OYSTER BUS AUTOTOP,Not applicable
17/10/16,20.00 ,Travel - Air/Rail/Road,PASSENGER RAILWAYS,ENVIRONMENT AND COMMUNITY SERVICES,OYSTER BUS AUTOTOP,Not applicable
17/10/16,20.00 ,Travel - Air/Rail/Road,PASSENGER RAILWAYS,ENVIRONMENT AND COMMUNITY SERVICES,OYSTER BUS AUTOTOP,Not applicable
17/10/16,20.00 ,Travel - Air/Rail/Road,PASSENGER RAILWAYS,ENVIRONMENT AND COMMUNITY SERVICES,OYSTER BUS AUTOTOP,Not applicable
17/10/16,20.00 ,Travel - Air/Rail/Road,PASSENGER RAILWAYS,ENVIRONMENT AND COMMUNITY SERVICES,OYSTER BUS AUTOTOP,Not applicable
18/10/16,56.05 ,Hotels and Accommodation,EMERGENCY ACCOMMODATION,HOUSING AND REGENERATION,TRAVELODGE,Not applicable
18/10/16,15.00 ,Travel - Air/Rail/Road,PASSENGER RAILWAYS,ENVIRONMENT AND COMMUNITY SERVICES,OYSTER ISSUE WEB,Not applicable
20/10/16,20.00 ,Travel - Air/Rail/Road,PASSENGER RAILWAYS,ENVIRONMENT AND COMMUNITY SERVICES,OYSTER AUTOTOPUP,Not applicable
20/10/16,232.50 ,Statutory Bodies,GOVERNMENT SERVICES-NOT ELSEWHERE CLASSIFIED,ENVIRONMENT AND COMMUNITY SERVICES,DVLA VEHICLE TAX,Not applicable
20/10/16,232.50 ,Statutory Bodies,GOVERNMENT SERVICES-NOT ELSEWHERE CLASSIFIED,ENVIRONMENT AND COMMUNITY SERVICES,DVLA VEHICLE TAX,Not applicable
20/10/16,232.50 ,Statutory Bodies,GOVERNMENT SERVICES-NOT ELSEWHERE CLASSIFIED,ENVIRONMENT AND COMMUNITY SERVICES,DVLA VEHICLE TAX,Not applicable
20/10/16,232.50 ,Statutory Bodies,GOVERNMENT SERVICES-NOT ELSEWHERE CLASSIFIED,ENVIRONMENT AND COMMUNITY SERVICES,DVLA VEHICLE TAX,Not applicable
20/10/16,232.50 ,Statutory Bodies,GOVERNMENT SERVICES-NOT ELSEWHERE CLASSIFIED,ENVIRONMENT AND COMMUNITY SERVICES,DVLA VEHICLE TAX,Not applicable
20/10/16,232.50 ,Statutory Bodies,GOVERNMENT SERVICES-NOT ELSEWHERE CLASSIFIED,ENVIRONMENT AND COMMUNITY SERVICES,DVLA VEHICLE TAX,Not applicable
20/10/16,232.50 ,Statutory Bodies,GOVERNMENT SERVICES-NOT ELSEWHERE CLASSIFIED,ENVIRONMENT AND COMMUNITY SERVICES,DVLA VEHICLE TAX,Not applicable
20/10/16,212.50 ,Statutory Bodies,GOVERNMENT SERVICES-NOT ELSEWHERE CLASSIFIED,ENVIRONMENT AND COMMUNITY SERVICES,DVLA VEHICLE TAX,Not applicable
20/10/16,232.50 ,Statutory Bodies,GOVERNMENT SERVICES-NOT ELSEWHERE CLASSIFIED,ENVIRONMENT AND COMMUNITY SERVICES,DVLA VEHICLE TAX,Not applicable
20/10/16,232.50 ,Statutory Bodies,GOVERNMENT SERVICES-NOT ELSEWHERE CLASSIFIED,ENVIRONMENT AND COMMUNITY SERVICES,DVLA VEHICLE TAX,Not applicable
20/10/16,232.50 ,Statutory Bodies,GOVERNMENT SERVICES-NOT ELSEWHERE CLASSIFIED,ENVIRONMENT AND COMMUNITY SERVICES,DVLA VEHICLE TAX,Not applicable
20/10/16,232.50 ,Statutory Bodies,GOVERNMENT SERVICES-NOT ELSEWHERE CLASSIFIED,ENVIRONMENT AND COMMUNITY SERVICES,DVLA VEHICLE TAX,Not applicable
20/10/16,232.50 ,Statutory Bodies,GOVERNMENT SERVICES-NOT ELSEWHERE CLASSIFIED,ENVIRONMENT AND COMMUNITY SERVICES,DVLA VEHICLE TAX,Not applicable
20/10/16,232.50 ,Statutory Bodies,GOVERNMENT SERVICES-NOT ELSEWHERE CLASSIFIED,ENVIRONMENT AND COMMUNITY SERVICES,DVLA VEHICLE TAX,Not applicable
20/10/16,232.50 ,Statutory Bodies,GOVERNMENT SERVICES-NOT ELSEWHERE CLASSIFIED,ENVIRONMENT AND COMMUNITY SERVICES,DVLA VEHICLE TAX,Not applicable
20/10/16,232.50 ,Statutory Bodies,GOVERNMENT SERVICES-NOT ELSEWHERE CLASSIFIED,ENVIRONMENT AND COMMUNITY SERVICES,DVLA VEHICLE TAX,Not applicable
20/10/16,56.00 ,General Retail and Wholesale,DISCOUNT STORES,HOUSING AND REGENERATION,WWW.THEWORKS.CO.UK,Not applicable
21/10/16,20.00 ,Travel - Air/Rail/Road,PASSENGER RAILWAYS,ENVIRONMENT AND COMMUNITY SERVICES,OYSTER BUS AUTOTOP,Not applicable
21/10/16,20.00 ,Travel - Air/Rail/Road,PASSENGER RAILWAYS,ENVIRONMENT AND COMMUNITY SERVICES,OYSTER AUTOTOPUP,Not applicable
21/10/16,20.00 ,Travel - Air/Rail/Road,PASSENGER RAILWAYS,ENVIRONMENT AND COMMUNITY SERVICES,OYSTER AUTOTOPUP,Not applicable
21/10/16,20.00 ,Travel - Air/Rail/Road,PASSENGER RAILWAYS,ENVIRONMENT AND COMMUNITY SERVICES,OYSTER AUTOTOPUP,Not applicable
21/10/16,20.00 ,Travel - Air/Rail/Road,PASSENGER RAILWAYS,ENVIRONMENT AND COMMUNITY SERVICES,OYSTER AUTOTOPUP,Not applicable
21/10/16,20.00 ,Travel - Air/Rail/Road,PASSENGER RAILWAYS,ENVIRONMENT AND COMMUNITY SERVICES,OYSTER AUTOTOPUP,Not applicable
24/10/16,20.00 ,Travel - Air/Rail/Road,PASSENGER RAILWAYS,HOUSING AND REGENERATION,OYSTER AUTOTOPUP,Not applicable
24/10/16,20.00 ,Travel - Air/Rail/Road,PASSENGER RAILWAYS,HOUSING AND REGENERATION,OYSTER AUTOTOPUP,Not applicable
24/10/16,15.00 ,Travel - Air/Rail/Road,PASSENGER RAILWAYS,HOUSING AND REGENERATION,OYSTER ISSUE WEB,Not applicable
24/10/16,15.00 ,Travel - Air/Rail/Road,PASSENGER RAILWAYS,HOUSING AND REGENERATION,OYSTER ISSUE WEB,Not applicable
24/10/16,20.00 ,Travel - Air/Rail/Road,PASSENGER RAILWAYS,ENVIRONMENT AND COMMUNITY SERVICES,OYSTER BUS AUTOTOP,Not applicable
24/10/16,20.00 ,Travel - Air/Rail/Road,PASSENGER RAILWAYS,ENVIRONMENT AND COMMUNITY SERVICES,OYSTER BUS AUTOTOP,Not applicable
24/10/16,20.00 ,Travel - Air/Rail/Road,PASSENGER RAILWAYS,ENVIRONMENT AND COMMUNITY SERVICES,OYSTER AUTOTOPUP,Not applicable
24/10/16,20.00 ,Travel - Air/Rail/Road,PASSENGER RAILWAYS,ENVIRONMENT AND COMMUNITY SERVICES,OYSTER AUTOTOPUP,Not applicable
24/10/16,20.00 ,Travel - Air/Rail/Road,PASSENGER RAILWAYS,ENVIRONMENT AND COMMUNITY SERVICES,OYSTER BUS AUTOTOP,Not applicable
24/10/16,20.00 ,Travel - Air/Rail/Road,PASSENGER RAILWAYS,ENVIRONMENT AND COMMUNITY SERVICES,OYSTER AUTOTOPUP,Not applicable
24/10/16,20.00 ,Travel - Air/Rail/Road,PASSENGER RAILWAYS,ENVIRONMENT AND COMMUNITY SERVICES,OYSTER AUTOTOPUP,Not applicable
24/10/16,20.00 ,Travel - Air/Rail/Road,PASSENGER RAILWAYS,ENVIRONMENT AND COMMUNITY SERVICES,OYSTER AUTOTOPUP,Not applicable
24/10/16,20.00 ,Travel - Air/Rail/Road,PASSENGER RAILWAYS,ENVIRONMENT AND COMMUNITY SERVICES,OYSTER AUTOTOPUP,Not applicable
24/10/16,20.00 ,Travel - Air/Rail/Road,PASSENGER RAILWAYS,ENVIRONMENT AND COMMUNITY SERVICES,OYSTER AUTOTOPUP,Not applicable
24/10/16,20.00 ,Travel - Air/Rail/Road,PASSENGER RAILWAYS,ENVIRONMENT AND COMMUNITY SERVICES,OYSTER BUS AUTOTOP,Not applicable
24/10/16,20.00 ,Travel - Air/Rail/Road,PASSENGER RAILWAYS,ENVIRONMENT AND COMMUNITY SERVICES,OYSTER BUS AUTOTOP,Not applicable
24/10/16,20.00 ,Travel - Air/Rail/Road,PASSENGER RAILWAYS,ENVIRONMENT AND COMMUNITY SERVICES,OYSTER AUTOTOPUP,Not applicable
24/10/16,20.00 ,Travel - Air/Rail/Road,PASSENGER RAILWAYS,ENVIRONMENT AND COMMUNITY SERVICES,OYSTER BUS AUTOTOP,Not applicable
24/10/16,20.00 ,Travel - Air/Rail/Road,PASSENGER RAILWAYS,ENVIRONMENT AND COMMUNITY SERVICES,OYSTER AUTOTOPUP,Not applicable
25/10/16,20.00 ,Travel - Air/Rail/Road,PASSENGER RAILWAYS,ENVIRONMENT AND COMMUNITY SERVICES,OYSTER BUS AUTOTOP,Not applicable
26/10/16,15.00 ,Travel - Air/Rail/Road,PASSENGER RAILWAYS,HOUSING AND REGENERATION,OYSTER ISSUE WEB,Not applicable
26/10/16,15.00 ,Travel - Air/Rail/Road,PASSENGER RAILWAYS,HOUSING AND REGENERATION,OYSTER ISSUE WEB,Not applicable
26/10/16,15.00 ,Travel - Air/Rail/Road,PASSENGER RAILWAYS,HOUSING AND REGENERATION,OYSTER ISSUE WEB,Not applicable
26/10/16,15.00 ,Travel - Air/Rail/Road,PASSENGER RAILWAYS,HOUSING AND REGENERATION,OYSTER ISSUE WEB,Not applicable
26/10/16,55.00 ,Statutory Bodies,GOVERNMENT SERVICES-NOT ELSEWHERE CLASSIFIED,ENVIRONMENT AND COMMUNITY SERVICES,WWW.WANDSWORTH.GOV.UK,Not applicable
26/10/16,110.00 ,Statutory Bodies,GOVERNMENT SERVICES-NOT ELSEWHERE CLASSIFIED,ENVIRONMENT AND COMMUNITY SERVICES,WWW.WANDSWORTH.GOV.UK,Not applicable
26/10/16,65.00 ,Statutory Bodies,GOVERNMENT SERVICES-NOT ELSEWHERE CLASSIFIED,ENVIRONMENT AND COMMUNITY SERVICES,LAMBETH PCN PAYMENTS,Not applicable
27/10/16,20.00 ,Travel - Air/Rail/Road,PASSENGER RAILWAYS,ENVIRONMENT AND COMMUNITY SERVICES,OYSTER AUTOTOPUP,Not applicable
27/10/16,65.00 ,Travel - Air/Rail/Road,"BRIDGE AND ROAD FEES, TOLLS",ENVIRONMENT AND COMMUNITY SERVICES,TFL ROAD CHARGE,Not applicable
27/10/16,65.00 ,Travel - Air/Rail/Road,"BRIDGE AND ROAD FEES, TOLLS",ENVIRONMENT AND COMMUNITY SERVICES,TFL ROAD CHARGE,Not applicable
28/10/16,15.00 ,Travel - Air/Rail/Road,PASSENGER RAILWAYS,HOUSING AND REGENERATION,OYSTER ISSUE WEB,Not applicable
28/10/16,15.00 ,Travel - Air/Rail/Road,PASSENGER RAILWAYS,HOUSING AND REGENERATION,OYSTER ISSUE WEB,Not applicable
28/10/16,15.00 ,Travel - Air/Rail/Road,PASSENGER RAILWAYS,HOUSING AND REGENERATION,OYSTER ISSUE WEB,Not applicable
28/10/16,15.00 ,Travel - Air/Rail/Road,PASSENGER RAILWAYS,HOUSING AND REGENERATION,OYSTER ISSUE WEB,Not applicable
28/10/16,15.00 ,Travel - Air/Rail/Road,PASSENGER RAILWAYS,HOUSING AND REGENERATION,OYSTER ISSUE WEB,Not applicable
28/10/16,15.00 ,Travel - Air/Rail/Road,PASSENGER RAILWAYS,HOUSING AND REGENERATION,OYSTER ISSUE WEB,Not applicable
28/10/16,20.00 ,Travel - Air/Rail/Road,PASSENGER RAILWAYS,HOUSING AND REGENERATION,OYSTER AUTOTOPUP,Not applicable
28/10/16,20.00 ,Travel - Air/Rail/Road,PASSENGER RAILWAYS,ENVIRONMENT AND COMMUNITY SERVICES,OYSTER BUS AUTOTOP,Not applicable
28/10/16,20.00 ,Travel - Air/Rail/Road,PASSENGER RAILWAYS,ENVIRONMENT AND COMMUNITY SERVICES,OYSTER AUTOTOPUP,Not applicable
28/10/16,20.00 ,Travel - Air/Rail/Road,PASSENGER RAILWAYS,ENVIRONMENT AND COMMUNITY SERVICES,OYSTER AUTOTOPUP,Not applicable
28/10/16,20.00 ,Travel - Air/Rail/Road,PASSENGER RAILWAYS,ENVIRONMENT AND COMMUNITY SERVICES,OYSTER BUS AUTOTOP,Not applicable
31/10/16,20.00 ,Travel - Air/Rail/Road,PASSENGER RAILWAYS,ENVIRONMENT AND COMMUNITY SERVICES,OYSTER AUTOTOPUP,Not applicable
31/10/16,20.00 ,Travel - Air/Rail/Road,PASSENGER RAILWAYS,ENVIRONMENT AND COMMUNITY SERVICES,OYSTER BUS AUTOTOP,Not applicable
31/10/16,20.00 ,Travel - Air/Rail/Road,PASSENGER RAILWAYS,ENVIRONMENT AND COMMUNITY SERVICES,OYSTER AUTOTOPUP,Not applicable
31/10/16,20.00 ,Travel - Air/Rail/Road,PASSENGER RAILWAYS,ENVIRONMENT AND COMMUNITY SERVICES,OYSTER BUS AUTOTOP,Not applicable
31/10/16,20.00 ,Travel - Air/Rail/Road,PASSENGER RAILWAYS,ENVIRONMENT AND COMMUNITY SERVICES,OYSTER BUS AUTOTOP,Not applicable
31/10/16,20.00 ,Travel - Air/Rail/Road,PASSENGER RAILWAYS,ENVIRONMENT AND COMMUNITY SERVICES,OYSTER AUTOTOPUP,Not applicable
31/10/16,20.00 ,Travel - Air/Rail/Road,PASSENGER RAILWAYS,ENVIRONMENT AND COMMUNITY SERVICES,OYSTER BUS AUTOTOP,Not applicable
31/10/16,20.00 ,Travel - Air/Rail/Road,PASSENGER RAILWAYS,ENVIRONMENT AND COMMUNITY SERVICES,OYSTER BUS AUTOTOP,Not applicable
31/10/16,20.00 ,Travel - Air/Rail/Road,PASSENGER RAILWAYS,ENVIRONMENT AND COMMUNITY SERVICES,OYSTER AUTOTOPUP,Not applicable
31/10/16,20.00 ,Travel - Air/Rail/Road,PASSENGER RAILWAYS,ENVIRONMENT AND COMMUNITY SERVICES,OYSTER BUS AUTOTOP,Not applicable
31/10/16,160.00 ,Hotels and Accommodation,EMERGENCY ACCOMMODATION,HOUSING AND REGENERATION,TRAVELODGE,Not applicable
01/11/16,232.50 ,Statutory Bodies,GOVERNMENT SERVICES-NOT ELSEWHERE CLASSIFIED,ENVIRONMENT AND COMMUNITY SERVICES,DVLA VEHICLE TAX,Not applicable
01/11/16,652.50 ,Statutory Bodies,GOVERNMENT SERVICES-NOT ELSEWHERE CLASSIFIED,ENVIRONMENT AND COMMUNITY SERVICES,DVLA VEHICLE TAX,Not applicable
01/11/16,212.50 ,Statutory Bodies,GOVERNMENT SERVICES-NOT ELSEWHERE CLASSIFIED,ENVIRONMENT AND COMMUNITY SERVICES,DVLA VEHICLE TAX,Not applicable
01/11/16,212.50 ,Statutory Bodies,GOVERNMENT SERVICES-NOT ELSEWHERE CLASSIFIED,ENVIRONMENT AND COMMUNITY SERVICES,DVLA VEHICLE TAX,Not applicable
01/11/16,212.50 ,Statutory Bodies,GOVERNMENT SERVICES-NOT ELSEWHERE CLASSIFIED,ENVIRONMENT AND COMMUNITY SERVICES,DVLA VEHICLE TAX,Not applicable
01/11/16,202.50 ,Statutory Bodies,GOVERNMENT SERVICES-NOT ELSEWHERE CLASSIFIED,ENVIRONMENT AND COMMUNITY SERVICES,DVLA VEHICLE TAX,Not applicable
01/11/16,202.50 ,Statutory Bodies,GOVERNMENT SERVICES-NOT ELSEWHERE CLASSIFIED,ENVIRONMENT AND COMMUNITY SERVICES,DVLA VEHICLE TAX,Not applicable
01/11/16,272.50 ,Statutory Bodies,GOVERNMENT SERVICES-NOT ELSEWHERE CLASSIFIED,ENVIRONMENT AND COMMUNITY SERVICES,DVLA VEHICLE TAX,Not applicable
01/11/16,232.50 ,Statutory Bodies,GOVERNMENT SERVICES-NOT ELSEWHERE CLASSIFIED,ENVIRONMENT AND COMMUNITY SERVICES,DVLA VEHICLE TAX,Not applicable
01/11/16,232.50 ,Statutory Bodies,GOVERNMENT SERVICES-NOT ELSEWHERE CLASSIFIED,ENVIRONMENT AND COMMUNITY SERVICES,DVLA VEHICLE TAX,Not applicable
01/11/16,232.50 ,Statutory Bodies,GOVERNMENT SERVICES-NOT ELSEWHERE CLASSIFIED,ENVIRONMENT AND COMMUNITY SERVICES,DVLA VEHICLE TAX,Not applicable
01/11/16,81.00 ,Hotels and Accommodation,EMERGENCY ACCOMMODATION,HOUSING AND REGENERATION,TRAVELODGE,Not applicable
03/11/16,20.00 ,Travel - Air/Rail/Road,PASSENGER RAILWAYS,ENVIRONMENT AND COMMUNITY SERVICES,OYSTER AUTOTOPUP,Not applicable
03/11/16,20.00 ,Travel - Air/Rail/Road,PASSENGER RAILWAYS,ENVIRONMENT AND COMMUNITY SERVICES,OYSTER AUTOTOPUP,Not applicable
03/11/16,100.45 ,Hotels and Accommodation,EMERGENCY ACCOMMODATION,HOUSING AND REGENERATION,TRAVELODGE,Not applicable
04/11/16,20.00 ,Travel - Air/Rail/Road,PASSENGER RAILWAYS,HOUSING AND REGENERATION,OYSTER AUTOTOPUP,Not applicable
04/11/16,20.00 ,Travel - Air/Rail/Road,PASSENGER RAILWAYS,ENVIRONMENT AND COMMUNITY SERVICES,OYSTER AUTOTOPUP,Not applicable
04/11/16,20.00 ,Travel - Air/Rail/Road,PASSENGER RAILWAYS,ENVIRONMENT AND COMMUNITY SERVICES,OYSTER AUTOTOPUP,Not applicable
04/11/16,20.00 ,Travel - Air/Rail/Road,PASSENGER RAILWAYS,ENVIRONMENT AND COMMUNITY SERVICES,OYSTER AUTOTOPUP,Not applicable
04/11/16,20.00 ,Travel - Air/Rail/Road,PASSENGER RAILWAYS,ENVIRONMENT AND COMMUNITY SERVICES,OYSTER AUTOTOPUP,Not applicable
04/11/16,20.00 ,Travel - Air/Rail/Road,PASSENGER RAILWAYS,ENVIRONMENT AND COMMUNITY SERVICES,OYSTER AUTOTOPUP,Not applicable
04/11/16,20.00 ,Travel - Air/Rail/Road,PASSENGER RAILWAYS,ENVIRONMENT AND COMMUNITY SERVICES,OYSTER AUTOTOPUP,Not applicable
07/11/16,20.00 ,Travel - Air/Rail/Road,PASSENGER RAILWAYS,HOUSING AND REGENERATION,OYSTER BUS AUTOTOP,Not applicable
07/11/16,20.00 ,Travel - Air/Rail/Road,PASSENGER RAILWAYS,HOUSING AND REGENERATION,OYSTER AUTOTOPUP,Not applicable
07/11/16,20.00 ,Travel - Air/Rail/Road,PASSENGER RAILWAYS,HOUSING AND REGENERATION,OYSTER BUS AUTOTOP,Not applicable
07/11/16,20.00 ,Travel - Air/Rail/Road,PASSENGER RAILWAYS,HOUSING AND REGENERATION,OYSTER BUS AUTOTOP,Not applicable
07/11/16,20.00 ,Travel - Air/Rail/Road,PASSENGER RAILWAYS,HOUSING AND REGENERATION,OYSTER BUS AUTOTOP,Not applicable
07/11/16,20.00 ,Travel - Air/Rail/Road,PASSENGER RAILWAYS,HOUSING AND REGENERATION,OYSTER AUTOTOPUP,Not applicable
07/11/16,20.00 ,Travel - Air/Rail/Road,PASSENGER RAILWAYS,HOUSING AND REGENERATION,OYSTER BUS AUTOTOP,Not applicable
07/11/16,20.00 ,Travel - Air/Rail/Road,PASSENGER RAILWAYS,HOUSING AND REGENERATION,OYSTER BUS AUTOTOP,Not applicable
07/11/16,20.00 ,Travel - Air/Rail/Road,PASSENGER RAILWAYS,ENVIRONMENT AND COMMUNITY SERVICES,OYSTER AUTOTOPUP,Not applicable
07/11/16,20.00 ,Travel - Air/Rail/Road,PASSENGER RAILWAYS,ENVIRONMENT AND COMMUNITY SERVICES,OYSTER AUTOTOPUP,Not applicable
07/11/16,20.00 ,Travel - Air/Rail/Road,PASSENGER RAILWAYS,ENVIRONMENT AND COMMUNITY SERVICES,OYSTER BUS AUTOTOP,Not applicable
07/11/16,20.00 ,Travel - Air/Rail/Road,PASSENGER RAILWAYS,ENVIRONMENT AND COMMUNITY SERVICES,OYSTER BUS AUTOTOP,Not applicable
07/11/16,20.00 ,Travel - Air/Rail/Road,PASSENGER RAILWAYS,ENVIRONMENT AND COMMUNITY SERVICES,OYSTER AUTOTOPUP,Not applicable
07/11/16,20.00 ,Travel - Air/Rail/Road,PASSENGER RAILWAYS,ENVIRONMENT AND COMMUNITY SERVICES,OYSTER BUS AUTOTOP,Not applicable
07/11/16,20.00 ,Travel - Air/Rail/Road,PASSENGER RAILWAYS,ENVIRONMENT AND COMMUNITY SERVICES,OYSTER BUS AUTOTOP,Not applicable
07/11/16,20.00 ,Travel - Air/Rail/Road,PASSENGER RAILWAYS,ENVIRONMENT AND COMMUNITY SERVICES,OYSTER AUTOTOPUP,Not applicable
07/11/16,20.00 ,Travel - Air/Rail/Road,PASSENGER RAILWAYS,ENVIRONMENT AND COMMUNITY SERVICES,OYSTER AUTOTOPUP,Not applicable
07/11/16,20.00 ,Travel - Air/Rail/Road,PASSENGER RAILWAYS,ENVIRONMENT AND COMMUNITY SERVICES,OYSTER AUTOTOPUP,Not applicable
07/11/16,20.00 ,Travel - Air/Rail/Road,PASSENGER RAILWAYS,ENVIRONMENT AND COMMUNITY SERVICES,OYSTER BUS AUTOTOP,Not applicable
07/11/16,20.00 ,Travel - Air/Rail/Road,PASSENGER RAILWAYS,ENVIRONMENT AND COMMUNITY SERVICES,OYSTER BUS AUTOTOP,Not applicable
08/11/16,131.10 ,Hotels and Accommodation,EMERGENCY ACCOMMODATION,HOUSING AND REGENERATION,TRAVELODGE,Not applicable
08/11/16,20.00 ,Travel - Air/Rail/Road,PASSENGER RAILWAYS,HOUSING AND REGENERATION,OYSTER AUTOTOPUP,Not applicable
08/11/16,81.00 ,Hotels and Accommodation,EMERGENCY ACCOMMODATION,HOUSING AND REGENERATION,TRAVELODGE,Not applicable
09/11/16,76.95 ,Hotels and Accommodation,EMERGENCY ACCOMMODATION,HOUSING AND REGENERATION,TRAVELODGE,Not applicable
09/11/16,205.00 ,Statutory Bodies,GOVERNMENT SERVICES-NOT ELSEWHERE CLASSIFIED,ENVIRONMENT AND COMMUNITY SERVICES,DVSA MOT COMP 2,Not applicable
10/11/16,20.00 ,Travel - Air/Rail/Road,PASSENGER RAILWAYS,HOUSING AND REGENERATION,OYSTER AUTOTOPUP,Not applicable
11/11/16,20.00 ,Travel - Air/Rail/Road,PASSENGER RAILWAYS,HOUSING AND REGENERATION,OYSTER BUS AUTOTOP,Not applicable
11/11/16,20.00 ,Travel - Air/Rail/Road,PASSENGER RAILWAYS,HOUSING AND REGENERATION,OYSTER AUTOTOPUP,Not applicable
11/11/16,20.00 ,Travel - Air/Rail/Road,PASSENGER RAILWAYS,ENVIRONMENT AND COMMUNITY SERVICES,OYSTER AUTOTOPUP,Not applicable
11/11/16,20.00 ,Travel - Air/Rail/Road,PASSENGER RAILWAYS,ENVIRONMENT AND COMMUNITY SERVICES,OYSTER AUTOTOPUP,Not applicable
14/11/16,20.00 ,Travel - Air/Rail/Road,PASSENGER RAILWAYS,HOUSING AND REGENERATION,OYSTER AUTOTOPUP,Not applicable
14/11/16,20.00 ,Travel - Air/Rail/Road,PASSENGER RAILWAYS,HOUSING AND REGENERATION,OYSTER AUTOTOPUP,Not applicable
14/11/16,20.00 ,Travel - Air/Rail/Road,PASSENGER RAILWAYS,HOUSING AND REGENERATION,OYSTER AUTOTOPUP,Not applicable
14/11/16,20.00 ,Travel - Air/Rail/Road,PASSENGER RAILWAYS,HOUSING AND REGENERATION,OYSTER AUTOTOPUP,Not applicable
14/11/16,20.00 ,Travel - Air/Rail/Road,PASSENGER RAILWAYS,HOUSING AND REGENERATION,OYSTER AUTOTOPUP,Not applicable
14/11/16,20.00 ,Travel - Air/Rail/Road,PASSENGER RAILWAYS,HOUSING AND REGENERATION,OYSTER BUS AUTOTOP,Not applicable
14/11/16,20.00 ,Travel - Air/Rail/Road,PASSENGER RAILWAYS,ENVIRONMENT AND COMMUNITY SERVICES,OYSTER AUTOTOPUP,Not applicable
14/11/16,20.00 ,Travel - Air/Rail/Road,PASSENGER RAILWAYS,ENVIRONMENT AND COMMUNITY SERVICES,OYSTER AUTOTOPUP,Not applicable
14/11/16,20.00 ,Travel - Air/Rail/Road,PASSENGER RAILWAYS,ENVIRONMENT AND COMMUNITY SERVICES,OYSTER AUTOTOPUP,Not applicable
14/11/16,20.00 ,Travel - Air/Rail/Road,PASSENGER RAILWAYS,ENVIRONMENT AND COMMUNITY SERVICES,OYSTER BUS AUTOTOP,Not applicable
14/11/16,20.00 ,Travel - Air/Rail/Road,PASSENGER RAILWAYS,ENVIRONMENT AND COMMUNITY SERVICES,OYSTER AUTOTOPUP,Not applicable
14/11/16,20.00 ,Travel - Air/Rail/Road,PASSENGER RAILWAYS,ENVIRONMENT AND COMMUNITY SERVICES,OYSTER AUTOTOPUP,Not applicable
14/11/16,20.00 ,Travel - Air/Rail/Road,PASSENGER RAILWAYS,ENVIRONMENT AND COMMUNITY SERVICES,OYSTER AUTOTOPUP,Not applicable
14/11/16,20.00 ,Travel - Air/Rail/Road,PASSENGER RAILWAYS,ENVIRONMENT AND COMMUNITY SERVICES,OYSTER BUS AUTOTOP,Not applicable
14/11/16,20.00 ,Travel - Air/Rail/Road,PASSENGER RAILWAYS,ENVIRONMENT AND COMMUNITY SERVICES,OYSTER AUTOTOPUP,Not applicable
14/11/16,20.00 ,Travel - Air/Rail/Road,PASSENGER RAILWAYS,ENVIRONMENT AND COMMUNITY SERVICES,OYSTER AUTOTOPUP,Not applicable
14/11/16,20.00 ,Travel - Air/Rail/Road,PASSENGER RAILWAYS,ENVIRONMENT AND COMMUNITY SERVICES,OYSTER AUTOTOPUP,Not applicable
14/11/16,20.00 ,Travel - Air/Rail/Road,PASSENGER RAILWAYS,ENVIRONMENT AND COMMUNITY SERVICES,OYSTER BUS AUTOTOP,Not applicable
14/11/16,20.00 ,Travel - Air/Rail/Road,PASSENGER RAILWAYS,ENVIRONMENT AND COMMUNITY SERVICES,OYSTER AUTOTOPUP,Not applicable
15/11/16,30.00 ,Statutory Bodies,GOVERNMENT SERVICES-NOT ELSEWHERE CLASSIFIED,ENVIRONMENT AND COMMUNITY SERVICES,WWW.WANDSWORTH.GOV.UK,Not applicable
17/11/16,20.00 ,Travel - Air/Rail/Road,PASSENGER RAILWAYS,HOUSING AND REGENERATION,OYSTER AUTOTOPUP,Not applicable
17/11/16,20.00 ,Travel - Air/Rail/Road,PASSENGER RAILWAYS,ENVIRONMENT AND COMMUNITY SERVICES,OYSTER AUTOTOPUP,Not applicable
17/11/16,20.00 ,Travel - Air/Rail/Road,PASSENGER RAILWAYS,ENVIRONMENT AND COMMUNITY SERVICES,OYSTER BUS AUTOTOP,Not applicable
18/11/16,20.00 ,Travel - Air/Rail/Road,PASSENGER RAILWAYS,ENVIRONMENT AND COMMUNITY SERVICES,OYSTER BUS AUTOTOP,Not applicable
18/11/16,20.00 ,Travel - Air/Rail/Road,PASSENGER RAILWAYS,ENVIRONMENT AND COMMUNITY SERVICES,OYSTER BUS AUTOTOP,Not applicable
18/11/16,20.00 ,Travel - Air/Rail/Road,PASSENGER RAILWAYS,ENVIRONMENT AND COMMUNITY SERVICES,OYSTER AUTOTOPUP,Not applicable
21/11/16,20.00 ,Travel - Air/Rail/Road,PASSENGER RAILWAYS,HOUSING AND REGENERATION,OYSTER AUTOTOPUP,Not applicable
21/11/16,20.00 ,Travel - Air/Rail/Road,PASSENGER RAILWAYS,HOUSING AND REGENERATION,OYSTER BUS AUTOTOP,Not applicable
21/11/16,439.00 ,Statutory Bodies,GOVERNMENT SERVICES-NOT ELSEWHERE CLASSIFIED,HOUSING AND REGENERATION,LONDON BOROUGH OF,Not applicable
21/11/16,20.00 ,Travel - Air/Rail/Road,PASSENGER RAILWAYS,HOUSING AND REGENERATION,OYSTER AUTOTOPUP,Not applicable
21/11/16,20.00 ,Travel - Air/Rail/Road,PASSENGER RAILWAYS,ENVIRONMENT AND COMMUNITY SERVICES,OYSTER AUTOTOPUP,Not applicable
21/11/16,20.00 ,Travel - Air/Rail/Road,PASSENGER RAILWAYS,ENVIRONMENT AND COMMUNITY SERVICES,OYSTER AUTOTOPUP,Not applicable
21/11/16,20.00 ,Travel - Air/Rail/Road,PASSENGER RAILWAYS,ENVIRONMENT AND COMMUNITY SERVICES,OYSTER BUS AUTOTOP,Not applicable
21/11/16,20.00 ,Travel - Air/Rail/Road,PASSENGER RAILWAYS,ENVIRONMENT AND COMMUNITY SERVICES,OYSTER AUTOTOPUP,Not applicable
21/11/16,20.00 ,Travel - Air/Rail/Road,PASSENGER RAILWAYS,ENVIRONMENT AND COMMUNITY SERVICES,OYSTER AUTOTOPUP,Not applicable
21/11/16,20.00 ,Travel - Air/Rail/Road,PASSENGER RAILWAYS,ENVIRONMENT AND COMMUNITY SERVICES,OYSTER AUTOTOPUP,Not applicable
21/11/16,20.00 ,Travel - Air/Rail/Road,PASSENGER RAILWAYS,ENVIRONMENT AND COMMUNITY SERVICES,OYSTER BUS AUTOTOP,Not applicable
21/11/16,20.00 ,Travel - Air/Rail/Road,PASSENGER RAILWAYS,ENVIRONMENT AND COMMUNITY SERVICES,OYSTER AUTOTOPUP,Not applicable
21/11/16,20.00 ,Travel - Air/Rail/Road,PASSENGER RAILWAYS,ENVIRONMENT AND COMMUNITY SERVICES,OYSTER BUS AUTOTOP,Not applicable
21/11/16,20.00 ,Travel - Air/Rail/Road,PASSENGER RAILWAYS,ENVIRONMENT AND COMMUNITY SERVICES,OYSTER AUTOTOPUP,Not applicable
21/11/16,20.00 ,Travel - Air/Rail/Road,PASSENGER RAILWAYS,ENVIRONMENT AND COMMUNITY SERVICES,OYSTER BUS AUTOTOP,Not applicable
21/11/16,179.05 ,Hotels and Accommodation,EMERGENCY ACCOMMODATION,HOUSING AND REGENERATION,TRAVELODGE,Not applicable
24/11/16,20.00 ,Travel - Air/Rail/Road,PASSENGER RAILWAYS,HOUSING AND REGENERATION,OYSTER AUTOTOPUP,Not applicable
24/11/16,20.00 ,Travel - Air/Rail/Road,PASSENGER RAILWAYS,HOUSING AND REGENERATION,OYSTER AUTOTOPUP,Not applicable
24/11/16,20.00 ,Travel - Air/Rail/Road,PASSENGER RAILWAYS,ENVIRONMENT AND COMMUNITY SERVICES,OYSTER AUTOTOPUP,Not applicable
24/11/16,20.00 ,Travel - Air/Rail/Road,PASSENGER RAILWAYS,ENVIRONMENT AND COMMUNITY SERVICES,OYSTER AUTOTOPUP,Not applicable
24/11/16,20.00 ,Travel - Air/Rail/Road,PASSENGER RAILWAYS,ENVIRONMENT AND COMMUNITY SERVICES,OYSTER BUS AUTOTOP,Not applicable
25/11/16,20.00 ,Travel - Air/Rail/Road,PASSENGER RAILWAYS,HOUSING AND REGENERATION,OYSTER AUTOTOPUP,Not applicable
25/11/16,20.00 ,Travel - Air/Rail/Road,PASSENGER RAILWAYS,HOUSING AND REGENERATION,OYSTER AUTOTOPUP,Not applicable
25/11/16,20.00 ,Travel - Air/Rail/Road,PASSENGER RAILWAYS,ENVIRONMENT AND COMMUNITY SERVICES,OYSTER BUS AUTOTOP,Not applicable
25/11/16,20.00 ,Travel - Air/Rail/Road,PASSENGER RAILWAYS,ENVIRONMENT AND COMMUNITY SERVICES,OYSTER BUS AUTOTOP,Not applicable
25/11/16,20.00 ,Travel - Air/Rail/Road,PASSENGER RAILWAYS,ENVIRONMENT AND COMMUNITY SERVICES,OYSTER BUS AUTOTOP,Not applicable
25/11/16,20.00 ,Travel - Air/Rail/Road,PASSENGER RAILWAYS,ENVIRONMENT AND COMMUNITY SERVICES,OYSTER AUTOTOPUP,Not applicable
25/11/16,20.00 ,Travel - Air/Rail/Road,PASSENGER RAILWAYS,ENVIRONMENT AND COMMUNITY SERVICES,OYSTER AUTOTOPUP,Not applicable
28/11/16,20.00 ,Travel - Air/Rail/Road,PASSENGER RAILWAYS,HOUSING AND REGENERATION,OYSTER AUTOTOPUP,Not applicable
28/11/16,20.00 ,Travel - Air/Rail/Road,PASSENGER RAILWAYS,HOUSING AND REGENERATION,OYSTER BUS AUTOTOP,Not applicable
28/11/16,20.00 ,Travel - Air/Rail/Road,PASSENGER RAILWAYS,HOUSING AND REGENERATION,OYSTER BUS AUTOTOP,Not applicable
28/11/16,20.00 ,Travel - Air/Rail/Road,PASSENGER RAILWAYS,HOUSING AND REGENERATION,OYSTER AUTOTOPUP,Not applicable
28/11/16,20.00 ,Travel - Air/Rail/Road,PASSENGER RAILWAYS,HOUSING AND REGENERATION,OYSTER BUS AUTOTOP,Not applicable
28/11/16,20.00 ,Travel - Air/Rail/Road,PASSENGER RAILWAYS,ENVIRONMENT AND COMMUNITY SERVICES,OYSTER BUS AUTOTOP,Not applicable
28/11/16,20.00 ,Travel - Air/Rail/Road,PASSENGER RAILWAYS,ENVIRONMENT AND COMMUNITY SERVICES,OYSTER AUTOTOPUP,Not applicable
28/11/16,20.00 ,Travel - Air/Rail/Road,PASSENGER RAILWAYS,ENVIRONMENT AND COMMUNITY SERVICES,OYSTER BUS AUTOTOP,Not applicable
28/11/16,20.00 ,Travel - Air/Rail/Road,PASSENGER RAILWAYS,ENVIRONMENT AND COMMUNITY SERVICES,OYSTER AUTOTOPUP,Not applicable
28/11/16,20.00 ,Travel - Air/Rail/Road,PASSENGER RAILWAYS,ENVIRONMENT AND COMMUNITY SERVICES,OYSTER AUTOTOPUP,Not applicable
28/11/16,20.00 ,Travel - Air/Rail/Road,PASSENGER RAILWAYS,ENVIRONMENT AND COMMUNITY SERVICES,OYSTER AUTOTOPUP,Not applicable
28/11/16,20.00 ,Travel - Air/Rail/Road,PASSENGER RAILWAYS,ENVIRONMENT AND COMMUNITY SERVICES,OYSTER AUTOTOPUP,Not applicable
28/11/16,20.00 ,Travel - Air/Rail/Road,PASSENGER RAILWAYS,ENVIRONMENT AND COMMUNITY SERVICES,OYSTER AUTOTOPUP,Not applicable
28/11/16,20.00 ,Travel - Air/Rail/Road,PASSENGER RAILWAYS,ENVIRONMENT AND COMMUNITY SERVICES,OYSTER BUS AUTOTOP,Not applicable
28/11/16,20.00 ,Travel - Air/Rail/Road,PASSENGER RAILWAYS,ENVIRONMENT AND COMMUNITY SERVICES,OYSTER AUTOTOPUP,Not applicable
28/11/16,20.00 ,Travel - Air/Rail/Road,PASSENGER RAILWAYS,ENVIRONMENT AND COMMUNITY SERVICES,OYSTER BUS AUTOTOP,Not applicable
28/11/16,20.00 ,Travel - Air/Rail/Road,PASSENGER RAILWAYS,ENVIRONMENT AND COMMUNITY SERVICES,OYSTER AUTOTOPUP,Not applicable
28/11/16,20.00 ,Travel - Air/Rail/Road,PASSENGER RAILWAYS,ENVIRONMENT AND COMMUNITY SERVICES,OYSTER AUTOTOPUP,Not applicable
28/11/16,65.00 ,Travel - Air/Rail/Road,"BRIDGE AND ROAD FEES, TOLLS",ENVIRONMENT AND COMMUNITY SERVICES,TFL ROAD CHARGE,Not applicable
29/11/16,75.05 ,Hotels and Accommodation,EMERGENCY ACCOMMODATION,HOUSING AND REGENERATION,TRAVELODGE,Not applicable
01/12/16,20.00 ,Travel - Air/Rail/Road,PASSENGER RAILWAYS,HOUSING AND REGENERATION,OYSTER AUTOTOPUP,Not applicable
01/12/16,20.00 ,Travel - Air/Rail/Road,PASSENGER RAILWAYS,ENVIRONMENT AND COMMUNITY SERVICES,OYSTER AUTOTOPUP,Not applicable
01/12/16,20.00 ,Travel - Air/Rail/Road,PASSENGER RAILWAYS,ENVIRONMENT AND COMMUNITY SERVICES,OYSTER AUTOTOPUP,Not applicable
01/12/16,132.50 ,Statutory Bodies,GOVERNMENT SERVICES-NOT ELSEWHERE CLASSIFIED,ENVIRONMENT AND COMMUNITY SERVICES,DVLA VEHICLE TAX,Not applicable
01/12/16,232.50 ,Statutory Bodies,GOVERNMENT SERVICES-NOT ELSEWHERE CLASSIFIED,ENVIRONMENT AND COMMUNITY SERVICES,DVLA VEHICLE TAX,Not applicable
01/12/16,232.50 ,Statutory Bodies,GOVERNMENT SERVICES-NOT ELSEWHERE CLASSIFIED,ENVIRONMENT AND COMMUNITY SERVICES,DVLA VEHICLE TAX,Not applicable
01/12/16,232.50 ,Statutory Bodies,GOVERNMENT SERVICES-NOT ELSEWHERE CLASSIFIED,ENVIRONMENT AND COMMUNITY SERVICES,DVLA VEHICLE TAX,Not applicable
01/12/16,232.50 ,Statutory Bodies,GOVERNMENT SERVICES-NOT ELSEWHERE CLASSIFIED,ENVIRONMENT AND COMMUNITY SERVICES,DVLA VEHICLE TAX,Not applicable
01/12/16,232.50 ,Statutory Bodies,GOVERNMENT SERVICES-NOT ELSEWHERE CLASSIFIED,ENVIRONMENT AND COMMUNITY SERVICES,DVLA VEHICLE TAX,Not applicable
01/12/16,232.50 ,Statutory Bodies,GOVERNMENT SERVICES-NOT ELSEWHERE CLASSIFIED,ENVIRONMENT AND COMMUNITY SERVICES,DVLA VEHICLE TAX,Not applicable
01/12/16,232.50 ,Statutory Bodies,GOVERNMENT SERVICES-NOT ELSEWHERE CLASSIFIED,ENVIRONMENT AND COMMUNITY SERVICES,DVLA VEHICLE TAX,Not applicable
01/12/16,232.50 ,Statutory Bodies,GOVERNMENT SERVICES-NOT ELSEWHERE CLASSIFIED,ENVIRONMENT AND COMMUNITY SERVICES,DVLA VEHICLE TAX,Not applicable
01/12/16,232.50 ,Statutory Bodies,GOVERNMENT SERVICES-NOT ELSEWHERE CLASSIFIED,ENVIRONMENT AND COMMUNITY SERVICES,DVLA VEHICLE TAX,Not applicable
01/12/16,232.50 ,Statutory Bodies,GOVERNMENT SERVICES-NOT ELSEWHERE CLASSIFIED,ENVIRONMENT AND COMMUNITY SERVICES,DVLA VEHICLE TAX,Not applicable
01/12/16,65.00 ,Statutory Bodies,GOVERNMENT SERVICES-NOT ELSEWHERE CLASSIFIED,ENVIRONMENT AND COMMUNITY SERVICES,LB CROYDON,Not applicable
02/12/16,20.00 ,Travel - Air/Rail/Road,PASSENGER RAILWAYS,HOUSING AND REGENERATION,OYSTER AUTOTOPUP,Not applicable
02/12/16,20.00 ,Travel - Air/Rail/Road,PASSENGER RAILWAYS,ENVIRONMENT AND COMMUNITY SERVICES,OYSTER AUTOTOPUP,Not applicable
02/12/16,20.00 ,Travel - Air/Rail/Road,PASSENGER RAILWAYS,ENVIRONMENT AND COMMUNITY SERVICES,OYSTER AUTOTOPUP,Not applicable
02/12/16,20.00 ,Travel - Air/Rail/Road,PASSENGER RAILWAYS,ENVIRONMENT AND COMMUNITY SERVICES,OYSTER AUTOTOPUP,Not applicable
05/12/16,20.00 ,Travel - Air/Rail/Road,PASSENGER RAILWAYS,HOUSING AND REGENERATION,OYSTER AUTOTOPUP,Not applicable
05/12/16,20.00 ,Travel - Air/Rail/Road,PASSENGER RAILWAYS,HOUSING AND REGENERATION,OYSTER AUTOTOPUP,Not applicable
05/12/16,20.00 ,Travel - Air/Rail/Road,PASSENGER RAILWAYS,HOUSING AND REGENERATION,OYSTER BUS AUTOTOP,Not applicable
05/12/16,20.00 ,Travel - Air/Rail/Road,PASSENGER RAILWAYS,ENVIRONMENT AND COMMUNITY SERVICES,OYSTER BUS AUTOTOP,Not applicable
05/12/16,20.00 ,Travel - Air/Rail/Road,PASSENGER RAILWAYS,ENVIRONMENT AND COMMUNITY SERVICES,OYSTER AUTOTOPUP,Not applicable
05/12/16,20.00 ,Travel - Air/Rail/Road,PASSENGER RAILWAYS,ENVIRONMENT AND COMMUNITY SERVICES,OYSTER BUS AUTOTOP,Not applicable
05/12/16,20.00 ,Travel - Air/Rail/Road,PASSENGER RAILWAYS,ENVIRONMENT AND COMMUNITY SERVICES,OYSTER AUTOTOPUP,Not applicable
05/12/16,20.00 ,Travel - Air/Rail/Road,PASSENGER RAILWAYS,ENVIRONMENT AND COMMUNITY SERVICES,OYSTER AUTOTOPUP,Not applicable
05/12/16,20.00 ,Travel - Air/Rail/Road,PASSENGER RAILWAYS,ENVIRONMENT AND COMMUNITY SERVICES,OYSTER AUTOTOPUP,Not applicable
05/12/16,20.00 ,Travel - Air/Rail/Road,PASSENGER RAILWAYS,ENVIRONMENT AND COMMUNITY SERVICES,OYSTER AUTOTOPUP,Not applicable
05/12/16,20.00 ,Travel - Air/Rail/Road,PASSENGER RAILWAYS,ENVIRONMENT AND COMMUNITY SERVICES,OYSTER AUTOTOPUP,Not applicable
05/12/16,20.00 ,Travel - Air/Rail/Road,PASSENGER RAILWAYS,ENVIRONMENT AND COMMUNITY SERVICES,OYSTER AUTOTOPUP,Not applicable
05/12/16,20.00 ,Travel - Air/Rail/Road,PASSENGER RAILWAYS,ENVIRONMENT AND COMMUNITY SERVICES,OYSTER AUTOTOPUP,Not applicable
05/12/16,20.00 ,Travel - Air/Rail/Road,PASSENGER RAILWAYS,ENVIRONMENT AND COMMUNITY SERVICES,OYSTER BUS AUTOTOP,Not applicable
05/12/16,20.00 ,Travel - Air/Rail/Road,PASSENGER RAILWAYS,ENVIRONMENT AND COMMUNITY SERVICES,OYSTER AUTOTOPUP,Not applicable
05/12/16,20.00 ,Travel - Air/Rail/Road,PASSENGER RAILWAYS,ENVIRONMENT AND COMMUNITY SERVICES,OYSTER AUTOTOPUP,Not applicable
05/12/16,20.00 ,Travel - Air/Rail/Road,PASSENGER RAILWAYS,ENVIRONMENT AND COMMUNITY SERVICES,OYSTER BUS AUTOTOP,Not applicable
05/12/16,20.00 ,Travel - Air/Rail/Road,PASSENGER RAILWAYS,ENVIRONMENT AND COMMUNITY SERVICES,OYSTER BUS AUTOTOP,Not applicable
05/12/16,410.00 ,Statutory Bodies,GOVERNMENT SERVICES-NOT ELSEWHERE CLASSIFIED,ENVIRONMENT AND COMMUNITY SERVICES,DVSA MOT COMP 2,Not applicable
06/12/16,20.00 ,Travel - Air/Rail/Road,PASSENGER RAILWAYS,ENVIRONMENT AND COMMUNITY SERVICES,OYSTER AUTOSETTLE,Not applicable
06/12/16,354.00 ,Professional Services,"CONSULTING, MANAGEMENT, AND PUBLIC RELATIONS SVCS",HOUSING AND REGENERATION,WWW.CITY& FINANCIA,Not applicable
08/12/16,20.00 ,Travel - Air/Rail/Road,PASSENGER RAILWAYS,HOUSING AND REGENERATION,OYSTER BUS AUTOTOP,Not applicable
08/12/16,20.00 ,Travel - Air/Rail/Road,PASSENGER RAILWAYS,ENVIRONMENT AND COMMUNITY SERVICES,OYSTER AUTOTOPUP,Not applicable
08/12/16,20.00 ,Travel - Air/Rail/Road,PASSENGER RAILWAYS,ENVIRONMENT AND COMMUNITY SERVICES,OYSTER BUS AUTOTOP,Not applicable
08/12/16,20.00 ,Travel - Air/Rail/Road,PASSENGER RAILWAYS,ENVIRONMENT AND COMMUNITY SERVICES,OYSTER BUS AUTOTOP,Not applicable
09/12/16,20.00 ,Travel - Air/Rail/Road,PASSENGER RAILWAYS,HOUSING AND REGENERATION,OYSTER BUS AUTOTOP,Not applicable
09/12/16,20.00 ,Travel - Air/Rail/Road,PASSENGER RAILWAYS,ENVIRONMENT AND COMMUNITY SERVICES,OYSTER AUTOTOPUP,Not applicable
09/12/16,20.00 ,Travel - Air/Rail/Road,PASSENGER RAILWAYS,ENVIRONMENT AND COMMUNITY SERVICES,OYSTER BUS AUTOTOP,Not applicable
09/12/16,20.00 ,Travel - Air/Rail/Road,PASSENGER RAILWAYS,ENVIRONMENT AND COMMUNITY SERVICES,OYSTER BUS AUTOTOP,Not applicable
09/12/16,20.00 ,Travel - Air/Rail/Road,PASSENGER RAILWAYS,ENVIRONMENT AND COMMUNITY SERVICES,OYSTER AUTOTOPUP,Not applicable
09/12/16,20.00 ,Travel - Air/Rail/Road,PASSENGER RAILWAYS,ENVIRONMENT AND COMMUNITY SERVICES,OYSTER BUS AUTOTOP,Not applicable
09/12/16,20.00 ,Travel - Air/Rail/Road,PASSENGER RAILWAYS,ENVIRONMENT AND COMMUNITY SERVICES,OYSTER BUS AUTOTOP,Not applicable
09/12/16,20.00 ,Travel - Air/Rail/Road,PASSENGER RAILWAYS,ENVIRONMENT AND COMMUNITY SERVICES,OYSTER BUS AUTOTOP,Not applicable
12/12/16,20.00 ,Travel - Air/Rail/Road,PASSENGER RAILWAYS,HOUSING AND REGENERATION,OYSTER BUS AUTOTOP,Not applicable
12/12/16,20.00 ,Travel - Air/Rail/Road,PASSENGER RAILWAYS,HOUSING AND REGENERATION,OYSTER AUTOTOPUP,Not applicable
12/12/16,20.00 ,Travel - Air/Rail/Road,PASSENGER RAILWAYS,HOUSING AND REGENERATION,OYSTER AUTOTOPUP,Not applicable
12/12/16,20.00 ,Travel - Air/Rail/Road,PASSENGER RAILWAYS,HOUSING AND REGENERATION,OYSTER AUTOTOPUP,Not applicable
12/12/16,20.00 ,Travel - Air/Rail/Road,PASSENGER RAILWAYS,HOUSING AND REGENERATION,OYSTER AUTOTOPUP,Not applicable
12/12/16,20.00 ,Travel - Air/Rail/Road,PASSENGER RAILWAYS,HOUSING AND REGENERATION,OYSTER AUTOTOPUP,Not applicable
12/12/16,20.00 ,Travel - Air/Rail/Road,PASSENGER RAILWAYS,ENVIRONMENT AND COMMUNITY SERVICES,OYSTER AUTOTOPUP,Not applicable
12/12/16,20.00 ,Travel - Air/Rail/Road,PASSENGER RAILWAYS,ENVIRONMENT AND COMMUNITY SERVICES,OYSTER BUS AUTOTOP,Not applicable
12/12/16,20.00 ,Travel - Air/Rail/Road,PASSENGER RAILWAYS,ENVIRONMENT AND COMMUNITY SERVICES,OYSTER BUS AUTOTOP,Not applicable
12/12/16,20.00 ,Travel - Air/Rail/Road,PASSENGER RAILWAYS,ENVIRONMENT AND COMMUNITY SERVICES,OYSTER AUTOTOPUP,Not applicable
12/12/16,20.00 ,Travel - Air/Rail/Road,PASSENGER RAILWAYS,ENVIRONMENT AND COMMUNITY SERVICES,OYSTER BUS AUTOTOP,Not applicable
12/12/16,20.00 ,Travel - Air/Rail/Road,PASSENGER RAILWAYS,ENVIRONMENT AND COMMUNITY SERVICES,OYSTER AUTOTOPUP,Not applicable
12/12/16,20.00 ,Travel - Air/Rail/Road,PASSENGER RAILWAYS,ENVIRONMENT AND COMMUNITY SERVICES,OYSTER AUTOTOPUP,Not applicable
12/12/16,20.00 ,Travel - Air/Rail/Road,PASSENGER RAILWAYS,ENVIRONMENT AND COMMUNITY SERVICES,OYSTER AUTOTOPUP,Not applicable
12/12/16,20.00 ,Travel - Air/Rail/Road,PASSENGER RAILWAYS,ENVIRONMENT AND COMMUNITY SERVICES,OYSTER AUTOTOPUP,Not applicable
12/12/16,178.90 ,Hotels and Accommodation,EMERGENCY ACCOMMODATION,HOUSING AND REGENERATION,TRAVELODGE,Not applicable
15/12/16,20.00 ,Travel - Air/Rail/Road,PASSENGER RAILWAYS,HOUSING AND REGENERATION,OYSTER BUS AUTOTOP,Not applicable
15/12/16,20.00 ,Travel - Air/Rail/Road,PASSENGER RAILWAYS,ENVIRONMENT AND COMMUNITY SERVICES,OYSTER AUTOTOPUP,Not applicable
15/12/16,20.00 ,Travel - Air/Rail/Road,PASSENGER RAILWAYS,ENVIRONMENT AND COMMUNITY SERVICES,OYSTER AUTOTOPUP,Not applicable
16/12/16,20.00 ,Travel - Air/Rail/Road,PASSENGER RAILWAYS,HOUSING AND REGENERATION,OYSTER AUTOTOPUP,Not applicable
16/12/16,20.00 ,Travel - Air/Rail/Road,PASSENGER RAILWAYS,HOUSING AND REGENERATION,OYSTER BUS AUTOTOP,Not applicable
16/12/16,20.00 ,Travel - Air/Rail/Road,PASSENGER RAILWAYS,HOUSING AND REGENERATION,OYSTER AUTOTOPUP,Not applicable
16/12/16,20.00 ,Travel - Air/Rail/Road,PASSENGER RAILWAYS,ENVIRONMENT AND COMMUNITY SERVICES,OYSTER BUS AUTOTOP,Not applicable
16/12/16,20.00 ,Travel - Air/Rail/Road,PASSENGER RAILWAYS,ENVIRONMENT AND COMMUNITY SERVICES,OYSTER AUTOTOPUP,Not applicable
19/12/16,20.00 ,Travel - Air/Rail/Road,PASSENGER RAILWAYS,ENVIRONMENT AND COMMUNITY SERVICES,OYSTER BUS AUTOTOP,Not applicable
19/12/16,20.00 ,Travel - Air/Rail/Road,PASSENGER RAILWAYS,ENVIRONMENT AND COMMUNITY SERVICES,OYSTER AUTOTOPUP,Not applicable
19/12/16,20.00 ,Travel - Air/Rail/Road,PASSENGER RAILWAYS,ENVIRONMENT AND COMMUNITY SERVICES,OYSTER AUTOTOPUP,Not applicable
19/12/16,20.00 ,Travel - Air/Rail/Road,PASSENGER RAILWAYS,ENVIRONMENT AND COMMUNITY SERVICES,OYSTER BUS AUTOTOP,Not applicable
19/12/16,20.00 ,Travel - Air/Rail/Road,PASSENGER RAILWAYS,ENVIRONMENT AND COMMUNITY SERVICES,OYSTER BUS AUTOTOP,Not applicable
19/12/16,20.00 ,Travel - Air/Rail/Road,PASSENGER RAILWAYS,ENVIRONMENT AND COMMUNITY SERVICES,OYSTER BUS AUTOTOP,Not applicable
19/12/16,20.00 ,Travel - Air/Rail/Road,PASSENGER RAILWAYS,ENVIRONMENT AND COMMUNITY SERVICES,OYSTER AUTOTOPUP,Not applicable
19/12/16,20.00 ,Travel - Air/Rail/Road,PASSENGER RAILWAYS,ENVIRONMENT AND COMMUNITY SERVICES,OYSTER BUS AUTOTOP,Not applicable
19/12/16,20.00 ,Travel - Air/Rail/Road,PASSENGER RAILWAYS,ENVIRONMENT AND COMMUNITY SERVICES,OYSTER BUS AUTOTOP,Not applicable
19/12/16,20.00 ,Travel - Air/Rail/Road,PASSENGER RAILWAYS,ENVIRONMENT AND COMMUNITY SERVICES,OYSTER BUS AUTOTOP,Not applicable
19/12/16,65.00 ,Travel - Air/Rail/Road,"BRIDGE AND ROAD FEES, TOLLS",ENVIRONMENT AND COMMUNITY SERVICES,TFL ROAD CHARGE,Not applicable
21/12/16,130.00 ,Statutory Bodies,GOVERNMENT SERVICES-NOT ELSEWHERE CLASSIFIED,ENVIRONMENT AND COMMUNITY SERVICES,WWW.WANDSWORTH.GOV.UK,Not applicable
22/12/16,20.00 ,Travel - Air/Rail/Road,PASSENGER RAILWAYS,ENVIRONMENT AND COMMUNITY SERVICES,OYSTER AUTOTOPUP,Not applicable
23/12/16,20.00 ,Travel - Air/Rail/Road,PASSENGER RAILWAYS,ENVIRONMENT AND COMMUNITY SERVICES,OYSTER AUTOTOPUP,Not applicable
23/12/16,20.00 ,Travel - Air/Rail/Road,PASSENGER RAILWAYS,ENVIRONMENT AND COMMUNITY SERVICES,OYSTER AUTOTOPUP,Not applicable
23/12/16,20.00 ,Travel - Air/Rail/Road,PASSENGER RAILWAYS,ENVIRONMENT AND COMMUNITY SERVICES,OYSTER BUS AUTOTOP,Not applicable
26/12/16,20.00 ,Travel - Air/Rail/Road,PASSENGER RAILWAYS,HOUSING AND REGENERATION,OYSTER BUS AUTOTOP,Not applicable
26/12/16,20.00 ,Travel - Air/Rail/Road,PASSENGER RAILWAYS,HOUSING AND REGENERATION,OYSTER AUTOTOPUP,Not applicable
26/12/16,20.00 ,Travel - Air/Rail/Road,PASSENGER RAILWAYS,HOUSING AND REGENERATION,OYSTER BUS AUTOTOP,Not applicable
26/12/16,20.00 ,Travel - Air/Rail/Road,PASSENGER RAILWAYS,ENVIRONMENT AND COMMUNITY SERVICES,OYSTER BUS AUTOTOP,Not applicable
26/12/16,20.00 ,Travel - Air/Rail/Road,PASSENGER RAILWAYS,ENVIRONMENT AND COMMUNITY SERVICES,OYSTER AUTOTOPUP,Not applicable
26/12/16,55.00 ,Statutory Bodies,GOVERNMENT SERVICES-NOT ELSEWHERE CLASSIFIED,ENVIRONMENT AND COMMUNITY SERVICES,ROYAL BOROUGH OF KINGS,Not applicable
26/12/16,30.00 ,Statutory Bodies,GOVERNMENT SERVICES-NOT ELSEWHERE CLASSIFIED,ENVIRONMENT AND COMMUNITY SERVICES,ROYAL BOROUGH OF KINGS,Not applicable
03/10/16,20.00 ,Travel - Air/Rail/Road,PASSENGER RAILWAYS,RESOURCES,OYSTER BUS AUTOTOP,Not applicable
03/10/16,20.00 ,Travel - Air/Rail/Road,PASSENGER RAILWAYS,RESOURCES,OYSTER AUTOTOPUP,Not applicable
03/10/16,20.00 ,Travel - Air/Rail/Road,PASSENGER RAILWAYS,RESOURCES,OYSTER AUTOTOPUP,Not applicable
03/10/16,20.00 ,Travel - Air/Rail/Road,PASSENGER RAILWAYS,RESOURCES,OYSTER BUS AUTOTOP,Not applicable
07/10/16,20.00 ,Travel - Air/Rail/Road,PASSENGER RAILWAYS,RESOURCES,OYSTER BUS AUTOTOP,Not applicable
07/10/16,20.00 ,Travel - Air/Rail/Road,PASSENGER RAILWAYS,RESOURCES,OYSTER AUTOTOPUP,Not applicable
10/10/16,20.00 ,Travel - Air/Rail/Road,PASSENGER RAILWAYS,RESOURCES,OYSTER BUS AUTOTOP,Not applicable
10/10/16,20.00 ,Travel - Air/Rail/Road,PASSENGER RAILWAYS,RESOURCES,OYSTER AUTOTOPUP,Not applicable
10/10/16,20.00 ,Travel - Air/Rail/Road,PASSENGER RAILWAYS,RESOURCES,OYSTER AUTOTOPUP,Not applicable
10/10/16,20.00 ,Travel - Air/Rail/Road,PASSENGER RAILWAYS,RESOURCES,OYSTER AUTOTOPUP,Not applicable
10/10/16,3.19 ,Books and Periodicals,BOOK STORES,RESOURCES,AMAZON UK MARKETPLACE,Not applicable
10/10/16,20.00 ,Travel - Air/Rail/Road,PASSENGER RAILWAYS,RESOURCES,OYSTER AUTOTOPUP,Not applicable
10/10/16,20.00 ,Travel - Air/Rail/Road,PASSENGER RAILWAYS,RESOURCES,OYSTER AUTOTOPUP,Not applicable
13/10/16,19.50 ,Books and Periodicals,BOOK STORES,RESOURCES,AMAZON UK MARKETPLACE,Not applicable
14/10/16,5781.00 ,Statutory Bodies,FINES,RESOURCES,HMCOURTS-SERVICE.G,Not applicable
14/10/16,20.00 ,Travel - Air/Rail/Road,PASSENGER RAILWAYS,RESOURCES,OYSTER AUTOTOPUP,Not applicable
14/10/16,20.00 ,Travel - Air/Rail/Road,PASSENGER RAILWAYS,RESOURCES,OYSTER AUTOTOPUP,Not applicable
14/10/16,20.74 ,General Retail and Wholesale,MISCELLANEOUS AND SPECIALTY RETAIL STORES,RESOURCES,AMAZON UK RETAIL AMAZO,Not applicable
17/10/16,20.00 ,Travel - Air/Rail/Road,PASSENGER RAILWAYS,RESOURCES,OYSTER AUTOTOPUP,Not applicable
17/10/16,20.00 ,Travel - Air/Rail/Road,PASSENGER RAILWAYS,RESOURCES,OYSTER BUS AUTOTOP,Not applicable
20/10/16,20.00 ,Travel - Air/Rail/Road,PASSENGER RAILWAYS,RESOURCES,OYSTER BUS AUTOTOP,Not applicable
21/10/16,20.00 ,Travel - Air/Rail/Road,PASSENGER RAILWAYS,RESOURCES,OYSTER AUTOTOPUP,Not applicable
21/10/16,20.00 ,Travel - Air/Rail/Road,PASSENGER RAILWAYS,RESOURCES,OYSTER AUTOTOPUP,Not applicable
21/10/16,20.00 ,Travel - Air/Rail/Road,PASSENGER RAILWAYS,RESOURCES,OYSTER AUTOTOPUP,Not applicable
24/10/16,22.24 ,Books and Periodicals,BOOK STORES,RESOURCES,AMAZON UK MARKETPLACE,Not applicable
24/10/16,3.39 ,Books and Periodicals,BOOK STORES,RESOURCES,AMAZON UK MARKETPLACE,Not applicable
24/10/16,20.00 ,Travel - Air/Rail/Road,PASSENGER RAILWAYS,RESOURCES,OYSTER AUTOTOPUP,Not applicable
26/10/16,56.99 ,Estate and Garden Services,FLORISTS,RESOURCES,COBBYS INTERFLORA,Not applicable
27/10/16,20.00 ,Travel - Air/Rail/Road,PASSENGER RAILWAYS,RESOURCES,OYSTER AUTOTOPUP,Not applicable
31/10/16,20.00 ,Travel - Air/Rail/Road,PASSENGER RAILWAYS,RESOURCES,OYSTER AUTOTOPUP,Not applicable
31/10/16,20.00 ,Travel - Air/Rail/Road,PASSENGER RAILWAYS,RESOURCES,OYSTER BUS AUTOTOP,Not applicable
03/11/16,20.00 ,Travel - Air/Rail/Road,PASSENGER RAILWAYS,RESOURCES,OYSTER BUS AUTOTOP,Not applicable
03/11/16,20.00 ,Travel - Air/Rail/Road,PASSENGER RAILWAYS,RESOURCES,OYSTER BUS AUTOTOP,Not applicable
03/11/16,20.00 ,Travel - Air/Rail/Road,PASSENGER RAILWAYS,RESOURCES,OYSTER BUS AUTOTOP,Not applicable
03/11/16,20.00 ,Travel - Air/Rail/Road,PASSENGER RAILWAYS,RESOURCES,OYSTER BUS AUTOTOP,Not applicable
04/11/16,20.00 ,Travel - Air/Rail/Road,PASSENGER RAILWAYS,RESOURCES,OYSTER AUTOTOPUP,Not applicable
04/11/16,20.00 ,Travel - Air/Rail/Road,PASSENGER RAILWAYS,RESOURCES,OYSTER AUTOTOPUP,Not applicable
07/11/16,20.00 ,Travel - Air/Rail/Road,PASSENGER RAILWAYS,RESOURCES,OYSTER BUS AUTOTOP,Not applicable
07/11/16,20.00 ,Travel - Air/Rail/Road,PASSENGER RAILWAYS,RESOURCES,OYSTER AUTOTOPUP,Not applicable
07/11/16,20.00 ,Travel - Air/Rail/Road,PASSENGER RAILWAYS,RESOURCES,OYSTER AUTOTOPUP,Not applicable
07/11/16,20.00 ,Travel - Air/Rail/Road,PASSENGER RAILWAYS,RESOURCES,OYSTER AUTOTOPUP,Not applicable
10/11/16,20.00 ,Travel - Air/Rail/Road,PASSENGER RAILWAYS,RESOURCES,OYSTER BUS AUTOTOP,Not applicable
11/11/16,20.00 ,Travel - Air/Rail/Road,PASSENGER RAILWAYS,RESOURCES,OYSTER AUTOTOPUP,Not applicable
11/11/16,20.00 ,Travel - Air/Rail/Road,PASSENGER RAILWAYS,RESOURCES,OYSTER AUTOTOPUP,Not applicable
14/11/16,20.00 ,Travel - Air/Rail/Road,PASSENGER RAILWAYS,RESOURCES,OYSTER AUTOTOPUP,Not applicable
14/11/16,20.00 ,Travel - Air/Rail/Road,PASSENGER RAILWAYS,RESOURCES,OYSTER AUTOTOPUP,Not applicable
14/11/16,20.00 ,Travel - Air/Rail/Road,PASSENGER RAILWAYS,RESOURCES,OYSTER AUTOTOPUP,Not applicable
21/11/16,20.00 ,Travel - Air/Rail/Road,PASSENGER RAILWAYS,RESOURCES,OYSTER AUTOTOPUP,Not applicable
21/11/16,20.00 ,Travel - Air/Rail/Road,PASSENGER RAILWAYS,RESOURCES,OYSTER AUTOTOPUP,Not applicable
24/11/16,29.90 ,Travel - Air/Rail/Road,PASSENGER RAILWAYS,RESOURCES,STAGECOACH SW TRAINS W,Not applicable
24/11/16,20.00 ,Travel - Air/Rail/Road,PASSENGER RAILWAYS,RESOURCES,OYSTER BUS AUTOTOP,Not applicable
25/11/16,20.00 ,Travel - Air/Rail/Road,PASSENGER RAILWAYS,RESOURCES,OYSTER AUTOTOPUP,Not applicable
25/11/16,20.00 ,Travel - Air/Rail/Road,PASSENGER RAILWAYS,RESOURCES,OYSTER AUTOTOPUP,Not applicable
28/11/16,20.00 ,Travel - Air/Rail/Road,PASSENGER RAILWAYS,RESOURCES,OYSTER BUS AUTOTOP,Not applicable
28/11/16,20.00 ,Travel - Air/Rail/Road,PASSENGER RAILWAYS,RESOURCES,OYSTER AUTOTOPUP,Not applicable
28/11/16,20.00 ,Travel - Air/Rail/Road,PASSENGER RAILWAYS,RESOURCES,OYSTER BUS AUTOTOP,Not applicable
01/12/16,20.00 ,Travel - Air/Rail/Road,PASSENGER RAILWAYS,RESOURCES,OYSTER AUTOTOPUP,Not applicable
01/12/16,20.00 ,Travel - Air/Rail/Road,PASSENGER RAILWAYS,RESOURCES,OYSTER AUTOTOPUP,Not applicable
02/12/16,20.00 ,Travel - Air/Rail/Road,PASSENGER RAILWAYS,RESOURCES,OYSTER AUTOTOPUP,Not applicable
02/12/16,20.00 ,Travel - Air/Rail/Road,PASSENGER RAILWAYS,RESOURCES,OYSTER AUTOTOPUP,Not applicable
05/12/16,20.00 ,Travel - Air/Rail/Road,PASSENGER RAILWAYS,RESOURCES,OYSTER BUS AUTOTOP,Not applicable
05/12/16,20.00 ,Travel - Air/Rail/Road,PASSENGER RAILWAYS,RESOURCES,OYSTER AUTOTOPUP,Not applicable
07/12/16,2172.00 ,Statutory Bodies,FINES,RESOURCES,HMCOURTS-SERVICE.G,Not applicable
09/12/16,20.00 ,Travel - Air/Rail/Road,PASSENGER RAILWAYS,RESOURCES,OYSTER AUTOTOPUP,Not applicable
12/12/16,20.00 ,Travel - Air/Rail/Road,PASSENGER RAILWAYS,RESOURCES,OYSTER AUTOTOPUP,Not applicable
12/12/16,20.00 ,Travel - Air/Rail/Road,PASSENGER RAILWAYS,RESOURCES,OYSTER AUTOTOPUP,Not applicable
12/12/16,240.00 ,Hotels and Accommodation,MARRIOTT,RESOURCES,MARRIOTT,Not applicable
12/12/16,20.00 ,Travel - Air/Rail/Road,PASSENGER RAILWAYS,RESOURCES,OYSTER BUS AUTOTOP,Not applicable
12/12/16,20.00 ,Travel - Air/Rail/Road,PASSENGER RAILWAYS,RESOURCES,OYSTER AUTOTOPUP,Not applicable
15/12/16,20.00 ,Travel - Air/Rail/Road,PASSENGER RAILWAYS,RESOURCES,OYSTER AUTOTOPUP,Not applicable
16/12/16,20.00 ,Travel - Air/Rail/Road,PASSENGER RAILWAYS,RESOURCES,OYSTER AUTOTOPUP,Not applicable
16/12/16,20.00 ,Travel - Air/Rail/Road,PASSENGER RAILWAYS,RESOURCES,OYSTER AUTOTOPUP,Not applicable
16/12/16,20.00 ,Travel - Air/Rail/Road,PASSENGER RAILWAYS,RESOURCES,OYSTER AUTOTOPUP,Not applicable
16/12/16,20.00 ,Travel - Air/Rail/Road,PASSENGER RAILWAYS,RESOURCES,OYSTER BUS AUTOTOP,Not applicable
23/12/16,20.00 ,Travel - Air/Rail/Road,PASSENGER RAILWAYS,RESOURCES,OYSTER AUTOTOPUP,Not applicable
23/12/16,20.00 ,Travel - Air/Rail/Road,PASSENGER RAILWAYS,RESOURCES,OYSTER AUTOTOPUP,Not applicable
26/12/16,20.00 ,Travel - Air/Rail/Road,PASSENGER RAILWAYS,RESOURCES,OYSTER AUTOTOPUP,Not applicable
26/12/16,20.00 ,Travel - Air/Rail/Road,PASSENGER RAILWAYS,RESOURCES,OYSTER BUS AUTOTOP,Not applicable
26/12/16,20.00 ,Travel - Air/Rail/Road,PASSENGER RAILWAYS,RESOURCES,OYSTER AUTOTOPUP,Not applicable
26/12/16,20.00 ,Travel - Air/Rail/Road,PASSENGER RAILWAYS,RESOURCES,OYSTER BUS AUTOTOP,Not applicable
03/10/16,9.99 ,Mail Order / Direct Selling,DIRECT MARKETING-OTHER DIRECT MARKETERS/NOT ELSEW.,SCHOOLS,AMAZON EU,Not applicable
03/10/16,34.87 ,Books and Periodicals,BOOK STORES,SCHOOLS,AMAZON UK MARKETPLACE,Not applicable
03/10/16,20.00 ,Travel - Air/Rail/Road,PASSENGER RAILWAYS,SCHOOLS,OYSTER RENEW WEB,Not applicable
04/10/16,85.21 ,General Retail and Wholesale,"GROCERY STORES, SUPERMARKETS",SCHOOLS,TESCO STORES 5999,Not applicable
14/10/16,29.80 ,Catering and Catering Supplies,"MISC FOOD STORE-CONVENIENCE,MRKT,SPLTY,VENDNG MACS",SCHOOLS,WWW.THEGARLICFARM.CO.U,Not applicable
17/10/16,367.98 ,General Retail and Wholesale,"FIREPLACE, FIREPLACE SCREENS & ACCESSORIES STORES",SCHOOLS,COMPOST DIR,Not applicable
17/10/16,20.00 ,Travel - Air/Rail/Road,PASSENGER RAILWAYS,SCHOOLS,OYSTER BUS AUTOTOP,Not applicable
17/10/16,20.00 ,Travel - Air/Rail/Road,PASSENGER RAILWAYS,SCHOOLS,OYSTER BUS AUTOTOP,Not applicable
18/10/16,47.22 ,General Retail and Wholesale,"GROCERY STORES, SUPERMARKETS",SCHOOLS,TESCO STORES 5999,Not applicable
19/10/16,48.49 ,"Office Stationery, Equipment and Supplies","QUICK COPY,REPRODUCTION AND BLUEPRINTING SERVICES",SCHOOLS,STRESS FREE PRINT,Not applicable
20/10/16,256.00 ,Miscellaneous Industrial/Commercial Supplies,BUSINESS SERVICES-NOT ELSEWHERE CLASSIFIED,SCHOOLS,WWW.REECESAFETY.CO.UK,Not applicable
20/10/16,15.49 ,General Retail and Wholesale,MISCELLANEOUS AND SPECIALTY RETAIL STORES,SCHOOLS,AMAZON UK RETAIL AMAZO,Not applicable
21/10/16,19.15 ,Building Materials,"BUILDING MATERIALS, LUMBER STORES",SCHOOLS,TRADE UK,Not applicable
21/10/16,-29.98 ,General Retail and Wholesale,"FIREPLACE, FIREPLACE SCREENS & ACCESSORIES STORES",SCHOOLS,COMPOST DIR,Not applicable
24/10/16,24.19 ,Books and Periodicals,BOOK STORES,SCHOOLS,AMAZON UK MARKETPLACE,Not applicable
24/10/16,290.74 ,General Retail and Wholesale,MISCELLANEOUS AND SPECIALTY RETAIL STORES,SCHOOLS,WWW.TROPHIESANDMEDALS.,Not applicable
24/10/16,18.44 ,General Retail and Wholesale,MISCELLANEOUS AND SPECIALTY RETAIL STORES,SCHOOLS,AMAZON UK RETAIL AMAZO,Not applicable
24/10/16,30.78 ,"Office Stationery, Equipment and Supplies",STATIONERY/OFFICE SUPPLIES/PRINTING & WRITING PAP.,SCHOOLS,ENVELOPES LTD.,Not applicable
26/10/16,382.80 ,General Retail and Wholesale,"EQUIP, FURNITURE, HOME FURNSHNGS STRS (EXCPT APPL)",SCHOOLS,WWW.FURNITUREATWORK.CO,Not applicable
26/10/16,43.52 ,"Office Stationery, Equipment and Supplies","QUICK COPY,REPRODUCTION AND BLUEPRINTING SERVICES",SCHOOLS,STRESS FREE PRINT,Not applicable
27/10/16,14.94 ,General Retail and Wholesale,ELECTRONIC SALES,SCHOOLS,PC WORLD ONLINE,Not applicable
27.10.16,67.31 ,Travel - Air/Rail/Road,TRANSPORTATION SERVICES NOT ELSEWHERE CLASSIFIED,SCHOOLS,ZIPCAR,Not applicable
01/11/16,97.01 ,General Retail and Wholesale,"GROCERY STORES, SUPERMARKETS",SCHOOLS,TESCO STORES 5999,Not applicable
03/11/16,135.00 ,Clubs/Associations/Organisations,"ORGANIZATIONS, CHARITABLE AND SOCIAL SERVICES",SCHOOLS,PAYPAL  COUNCILFORL,Not applicable
03/11/16,150.00 ,Clubs/Associations/Organisations,"ORGANIZATIONS, CHARITABLE AND SOCIAL SERVICES",SCHOOLS,PAYPAL  COUNCILFORL,Not applicable
04/11/16,187.05 ,General Retail and Wholesale,"GIFT, CARD, NOVELTY AND SOUVENIR SHOPS",SCHOOLS,BIG FAT BALLOONS,Not applicable
04/11/16,234.80 ,"Office Stationery, Equipment and Supplies",STATIONERY/OFFICE SUPPLIES/PRINTING & WRITING PAP.,SCHOOLS,WWW.THESUPERMARKETONLI,Not applicable
04/11/16,105.25 ,"Office Stationery, Equipment and Supplies","QUICK COPY,REPRODUCTION AND BLUEPRINTING SERVICES",SCHOOLS,STRESS FREE PRINT,Not applicable
04/11/16,174.00 ,Hotels and Accommodation,PREMIER INN,SCHOOLS,PREMIER INN,Not applicable
04/11/16,-174.00 ,Hotels and Accommodation,PREMIER INN,SCHOOLS,PREMIER INN,Not applicable
07/11/16,36.40 ,Business Clothing and Footwear,"CLOTHING RENTAL-COSTUMES,UNIFORMS,FORMAL WEAR",SCHOOLS,THE-ZONE.CO.UK,Not applicable
11/11/16,42.70 ,Computer Equipment & Services,COMPUTER NETWORK/INFORMATION SERVICES,SCHOOLS,AMZ TROPHYMASTER,Not applicable
14/11/16,71.42 ,General Retail and Wholesale,"GROCERY STORES, SUPERMARKETS",SCHOOLS,TESCO STORES 5999,Not applicable
16/11/16,-150.00 ,Clubs/Associations/Organisations,"ORGANIZATIONS, CHARITABLE AND SOCIAL SERVICES",SCHOOLS,PAYPAL  COUNCILFORL,Not applicable
18/11/16,11.90 ,Mail Order / Direct Selling,DIRECT MARKETING-OTHER DIRECT MARKETERS/NOT ELSEW.,SCHOOLS,AMAZON EU,Not applicable
23/11/16,118.80 ,Travel - Air/Rail/Road,TRANSPORTATION SERVICES NOT ELSEWHERE CLASSIFIED,SCHOOLS,ZIPCAR,Not applicable
25/11/16,31.97 ,Building Materials,"BUILDING MATERIALS, LUMBER STORES",SCHOOLS,TRADE UK,Not applicable
25/11/16,20.00 ,Travel - Air/Rail/Road,PASSENGER RAILWAYS,SCHOOLS,OYSTER RENEW WEB,Not applicable
25/11/16,353.76 ,Estate and Garden Services,LAWN AND GARDEN SUPPLY STORES,SCHOOLS,PITCHCARE ONLINE,Not applicable
28/11/16,12.99 ,Books and Periodicals,BOOK STORES,SCHOOLS,AMAZON UK MARKETPLACE,Not applicable
28/11/16,91.72 ,General Retail and Wholesale,"GROCERY STORES, SUPERMARKETS",SCHOOLS,TESCO STORES 5999,Not applicable
30/11/16,418.22 ,Utilities and Non Automotive Fuel,"UTLTS-ELCTRC, GAS, HEATING OIL, SANITARY, WATER",SCHOOLS,THAMES WATER WEB,Not applicable
02/12/16,52.27 ,"Office Stationery, Equipment and Supplies",STATIONERY/OFFICE SUPPLIES/PRINTING & WRITING PAP.,SCHOOLS,WWW.THESUPERMARKETONLI,Not applicable
12/12/16,20.00 ,Travel - Air/Rail/Road,PASSENGER RAILWAYS,SCHOOLS,OYSTER BUS AUTOTOP,Not applicable
12/12/16,31.39 ,Books and Periodicals,BOOK STORES,SCHOOLS,AMAZON UK MARKETPLACE,Not applicable
12/12/16,5.98 ,Books and Periodicals,BOOK STORES,SCHOOLS,AMAZON UK MARKETPLACE,Not applicable
12/12/16,25.15 ,Clubs/Associations/Organisations,"ORGANIZATIONS, CHARITABLE AND SOCIAL SERVICES",SCHOOLS,NAS UK,Not applicable
13/12/16,3.95 ,Mail Order / Direct Selling,DIRECT MARKETING-OTHER DIRECT MARKETERS/NOT ELSEW.,SCHOOLS,AMAZON EU,Not applicable
14/12/16,135.81 ,General Retail and Wholesale,"GROCERY STORES, SUPERMARKETS",SCHOOLS,TESCO STORES 5999,Not applicable
23/12/16,20.00 ,Travel - Air/Rail/Road,PASSENGER RAILWAYS,SCHOOLS,OYSTER BUS AUTOTOP,Not applicable
03/10/16,23.65 ,Catering and Catering Supplies,"MISC FOOD STORE-CONVENIENCE,MRKT,SPLTY,VENDNG MACS",SCHOOLS,LOVE IT COPAGRI RU 972,Not applicable
07/10/16,91.50 ,Books and Periodicals,BOOK STORES,SCHOOLS,AMAZON UK MARKETPLACE,Not applicable
07/10/16,-12.12 ,Travel - Air/Rail/Road,TRAVEL AGENCIES AND TOUR OPERATORS,SCHOOLS,BOOKING.COM 923224964,Not applicable
07/10/16,33.00 ,General Retail and Wholesale,"EQUIP, FURNITURE, HOME FURNSHNGS STRS (EXCPT APPL)",SCHOOLS,NATIONAL SHOWER SP,Not applicable
14/10/16,334.89 ,Travel - Air/Rail/Road,THY (TURKEY),SCHOOLS,THY (TURKEY),Not applicable
17/10/16,98.66 ,Travel - Air/Rail/Road,BRITISH A,SCHOOLS,BRITISH A,Not applicable
21/10/16,59.99 ,General Retail and Wholesale,MISCELLANEOUS AND SPECIALTY RETAIL STORES,SCHOOLS,AMAZON UK RETAIL AMAZO,Not applicable
24/10/16,5.65 ,Books and Periodicals,BOOK STORES,SCHOOLS,AMAZON UK MARKETPLACE,Not applicable
24/10/16,18.91 ,Books and Periodicals,BOOK STORES,SCHOOLS,AMAZON UK MARKETPLACE,Not applicable
25/10/16,206.40 ,"Office Stationery, Equipment and Supplies",STATIONERY/OFFICE SUPPLIES/PRINTING & WRITING PAP.,SCHOOLS,WWW.VINYLLETTERINGONLI,Not applicable
26/10/16,109.99 ,Books and Periodicals,BOOK STORES,SCHOOLS,AMAZON UK MARKETPLACE,Not applicable
26/10/16,9.58 ,Mail Order / Direct Selling,DIRECT MARKETING-OTHER DIRECT MARKETERS/NOT ELSEW.,SCHOOLS,AMAZON EU,Not applicable
26/10/16,8.65 ,Books and Periodicals,BOOK STORES,SCHOOLS,AMAZON UK MARKETPLACE,Not applicable
26/10/16,14.41 ,Books and Periodicals,BOOK STORES,SCHOOLS,AMAZON UK MARKETPLACE,Not applicable
26/10/16,11.99 ,Books and Periodicals,BOOK STORES,SCHOOLS,AMAZON UK MARKETPLACE,Not applicable
26/10/16,29.99 ,General Retail and Wholesale,DISCOUNT STORES,SCHOOLS,ARGOS RETAIL GROUP,Not applicable
26/10/16,40.97 ,Books and Periodicals,BOOK STORES,SCHOOLS,AMAZON UK MARKETPLACE,Not applicable
27/10/16,44.97 ,Books and Periodicals,BOOK STORES,SCHOOLS,AMAZON UK MARKETPLACE,Not applicable
02/11/16,152.08 ,Travel - Air/Rail/Road,PASSENGER RAILWAYS,SCHOOLS,TRAINLINE,Not applicable
02/11/16,339.46 ,General Retail and Wholesale,MISCELLANEOUS AND SPECIALTY RETAIL STORES,SCHOOLS,WWWLOVETIKICOM,Not applicable
14/11/16,33.93 ,Books and Periodicals,BOOK STORES,SCHOOLS,AMAZON UK MARKETPLACE,Not applicable
16/11/16,44.99 ,Books and Periodicals,BOOK STORES,SCHOOLS,AMAZON UK MARKETPLACE,Not applicable
17/11/16,23.80 ,Books and Periodicals,BOOK STORES,SCHOOLS,AMAZON UK MARKETPLACE,Not applicable
17/11/16,8.40 ,Books and Periodicals,BOOK STORES,SCHOOLS,AMAZON UK MARKETPLACE,Not applicable
17/11/16,19.79 ,Books and Periodicals,BOOK STORES,SCHOOLS,AMAZON UK MARKETPLACE,Not applicable
18/11/16,160.00 ,Hotels and Accommodation,"LODGING-HOTELS,MOTELS,RESORTS-NOT CLASSIFIED",SCHOOLS,EAST KENT COLLEGE,Not applicable
18/11/16,140.00 ,Hotels and Accommodation,"LODGING-HOTELS,MOTELS,RESORTS-NOT CLASSIFIED",SCHOOLS,EAST KENT COLLEGE,Not applicable
21/11/16,79.00 ,Mail Order / Direct Selling,DIRECT MARKETING-CONTINUITY/SUBSCRIPTION MERCHANTS,SCHOOLS,AMAZON PRIME,Not applicable
22/11/16,13.94 ,Books and Periodicals,BOOK STORES,SCHOOLS,AMAZON UK MARKETPLACE,Not applicable
23/11/16,14.99 ,Books and Periodicals,BOOK STORES,SCHOOLS,AMAZON UK MARKETPLACE,Not applicable
23/11/16,0.82 ,Books and Periodicals,BOOK STORES,SCHOOLS,AMAZON UK MARKETPLACE,Not applicable
23/11/16,9.99 ,Books and Periodicals,BOOK STORES,SCHOOLS,AMAZON UK MARKETPLACE,Not applicable
23/11/16,20.63 ,Books and Periodicals,BOOK STORES,SCHOOLS,AMAZON UK MARKETPLACE,Not applicable
23/11/16,3.29 ,Books and Periodicals,BOOK STORES,SCHOOLS,AMAZON UK MARKETPLACE,Not applicable
23/11/16,4.98 ,Books and Periodicals,BOOK STORES,SCHOOLS,AMAZON UK MARKETPLACE,Not applicable
24/11/16,64.24 ,Books and Periodicals,BOOK STORES,SCHOOLS,AMAZON UK MARKETPLACE,Not applicable
24/11/16,4.79 ,Books and Periodicals,BOOK STORES,SCHOOLS,AMAZON UK MARKETPLACE,Not applicable
24/11/16,1.08 ,Books and Periodicals,BOOK STORES,SCHOOLS,AMAZON UK MARKETPLACE,Not applicable
24/11/16,24.03 ,Books and Periodicals,BOOK STORES,SCHOOLS,AMAZON UK MARKETPLACE,Not applicable
24/11/16,34.75 ,General Retail and Wholesale,MISCELLANEOUS AND SPECIALTY RETAIL STORES,SCHOOLS,AMAZON UK RETAIL AMAZO,Not applicable
24/11/16,42.50 ,General Retail and Wholesale,MISCELLANEOUS AND SPECIALTY RETAIL STORES,SCHOOLS,AMAZON UK RETAIL AMAZO,Not applicable
24/11/16,53.87 ,Computer Equipment & Services,COMPUTER SOFTWARE STORES,SCHOOLS,FSPRG.COM PDFCONVERTER,Not applicable
29/11/16,52.08 ,Miscellaneous Industrial/Commercial Supplies,"DURABLE GOODS, NOT ELSEWHERE CLASSIFIED",SCHOOLS,WWW.SAFELINCS.CO.UK,Not applicable
01/12/16,73.49 ,Hotels and Accommodation,PREMIER INN,SCHOOLS,PREMIER INN,Not applicable
02/12/16,42.62 ,Mail Order / Direct Selling,DIRECT MARKETING-OTHER DIRECT MARKETERS/NOT ELSEW.,SCHOOLS,AMAZON EU,Not applicable
05/12/16,9.09 ,Mail Order / Direct Selling,DIRECT MARKETING-OTHER DIRECT MARKETERS/NOT ELSEW.,SCHOOLS,AMAZON EU,Not applicable
05/12/16,9.99 ,Books and Periodicals,BOOK STORES,SCHOOLS,AMAZON UK MARKETPLACE,Not applicable
08/12/16,108.00 ,Leisure Activities,MOTION PICTURE THEATERS,SCHOOLS,WINTER GARDENS,Not applicable
12/12/16,223.28 ,Travel - Air/Rail/Road,PASSENGER RAILWAYS,SCHOOLS,TRAINLINE,Not applicable
12/12/16,20.00 ,General Retail and Wholesale,MISCELLANEOUS AND SPECIALTY RETAIL STORES,SCHOOLS,AMAZON UK RETAIL AMAZO,Not applicable
12/12/16,816.00 ,"Office Stationery, Equipment and Supplies","OFFICE, SCHOOL SUPPLY, AND STATIONERY STORES",SCHOOLS,WWW.OFFICEFURNITUREONL,Not applicable
13/12/16,38.76 ,Books and Periodicals,BOOK STORES,SCHOOLS,AMAZON UK MARKETPLACE,Not applicable
13/12/16,-4.75 ,Mail Order / Direct Selling,DIRECT MARKETING-OTHER DIRECT MARKETERS/NOT ELSEW.,SCHOOLS,AMAZON EU,Not applicable
14/12/16,64.24 ,Books and Periodicals,BOOK STORES,SCHOOLS,AMAZON UK MARKETPLACE,Not applicable
16/12/16,117.40 ,General Retail and Wholesale,MISCELLANEOUS AND SPECIALTY RETAIL STORES,SCHOOLS,AMAZON UK RETAIL AMAZO,Not applicable
22/12/16,20.00 ,Mail Order / Direct Selling,DIRECT MARKETING-OTHER DIRECT MARKETERS/NOT ELSEW.,SCHOOLS,AMAZON EU,Not applicable
17/10/16,71.57 ,Books and Periodicals,BOOK STORES,SCHOOLS,AMAZON UK MARKETPLACE,Not applicable
18/10/16,42.29 ,General Retail and Wholesale,MISCELLANEOUS AND SPECIALTY RETAIL STORES,SCHOOLS,AMAZON UK RETAIL AMAZO,Not applicable
18/10/16,52.24 ,General Retail and Wholesale,MISCELLANEOUS AND SPECIALTY RETAIL STORES,SCHOOLS,AMAZON UK RETAIL AMAZO,Not applicable
18/10/16,52.24 ,General Retail and Wholesale,MISCELLANEOUS AND SPECIALTY RETAIL STORES,SCHOOLS,AMAZON UK RETAIL AMAZO,Not applicable
19/10/16,115.19 ,Miscellaneous Industrial/Commercial Supplies,INDUSTRIAL SUPPLIES NOT ELSEWHERE CLASSIFIED,SCHOOLS,WWW.CONTRAL.CO.UK,Not applicable
20/10/16,156.99 ,General Retail and Wholesale,HOUSEHOLD APPLIANCE STORES,SCHOOLS,AO RETAIL LIMITED,Not applicable
01/11/16,12.27 ,Books and Periodicals,BOOK STORES,SCHOOLS,AMAZON UK MARKETPLACE,Not applicable
02/11/16,26.92 ,Mail Order / Direct Selling,DIRECT MARKETING-OTHER DIRECT MARKETERS/NOT ELSEW.,SCHOOLS,AMAZON EU,Not applicable
02/11/16,58.60 ,General Retail and Wholesale,"MUSIC STORES-INSTRUMENTS, PIANOS, SHEET MUSIC",SCHOOLS,WWW.OUTOFTHEARK.COM,Not applicable
03/11/16,215.00 ,General Retail and Wholesale,HOUSEHOLD APPLIANCE STORES,SCHOOLS,WANDSWORTH CALOR CENTR,Not applicable
03/11/16,90.00 ,Training and Educational,SCHOOLS & EDUCATIONAL SVC-NOT ELSEWHERE CLASSIFIED,SCHOOLS,ARBOR EDUCATION,Not applicable
14/11/16,9.98 ,Books and Periodicals,BOOK STORES,SCHOOLS,AMAZON UK MARKETPLACE,Not applicable
18/11/16,90.00 ,Building Materials,"BUILDING MATERIALS, LUMBER STORES",SCHOOLS,WWW.REALCHRISTMAST,Not applicable
23/11/16,35.63 ,Books and Periodicals,BOOK STORES,SCHOOLS,AMAZON UK MARKETPLACE,Not applicable
28/11/16,39.98 ,Books and Periodicals,BOOK STORES,SCHOOLS,AMAZON UK MARKETPLACE,Not applicable
30/11/16,35.93 ,General Retail and Wholesale,MISCELLANEOUS AND SPECIALTY RETAIL STORES,SCHOOLS,AMAZON UK RETAIL AMAZO,Not applicable
08/12/16,142.38 ,Computer Equipment & Services,"COMP PROGRAMING,DATA PRCSNG,INTGRTD SYS DSGN SRVS",SCHOOLS,WWW.STUFF-UK.NET,Not applicable
12/12/16,68.40 ,General Retail and Wholesale,"ARTIST SUPPLY STORES, CRAFT SHOPS",SCHOOLS,BAKER ROSS LTD,Not applicable
20/12/16,22.34 ,Books and Periodicals,BOOK STORES,SCHOOLS,AMAZON UK MARKETPLACE,Not applicable
21/12/16,156.13 ,"Office Stationery, Equipment and Supplies","OFFICE, SCHOOL SUPPLY, AND STATIONERY STORES",SCHOOLS,WWW.PHOTOPAPERDIRE,Not applicable
10/10/16,101.88 ,Books and Periodicals,BOOK STORES,SCHOOLS,MATHS NO PROBLEM,Not applicable
20/10/16,53.70 ,General Retail and Wholesale,HOUSEHOLD APPLIANCE STORES,SCHOOLS,EBUYER (UK) LTD,Not applicable
24/10/16,49.46 ,Books and Periodicals,BOOK STORES,SCHOOLS,AMAZON UK MARKETPLACE,Not applicable
02/11/16,396.00 ,Training and Educational,SCHOOLS & EDUCATIONAL SVC-NOT ELSEWHERE CLASSIFIED,SCHOOLS,ARBOR EDUCATION,Not applicable
03/11/16,237.76 ,Mail Order / Direct Selling,DIRECT MARKETING-OTHER DIRECT MARKETERS/NOT ELSEW.,SCHOOLS,AMAZON EU,Not applicable
10/11/16,247.41 ,General Retail and Wholesale,"ARTIST SUPPLY STORES, CRAFT SHOPS",SCHOOLS,WWW.BAKERROSS.CO.UK,Not applicable
11/11/16,8.99 ,General Retail and Wholesale,MISCELLANEOUS AND SPECIALTY RETAIL STORES,SCHOOLS,AMAZON UK RETAIL AMAZO,Not applicable
11/11/16,8.99 ,Mail Order / Direct Selling,DIRECT MARKETING-OTHER DIRECT MARKETERS/NOT ELSEW.,SCHOOLS,AMAZON EU,Not applicable
11/11/16,8.99 ,Mail Order / Direct Selling,DIRECT MARKETING-OTHER DIRECT MARKETERS/NOT ELSEW.,SCHOOLS,AMAZON EU,Not applicable
14/11/16,53.94 ,General Retail and Wholesale,MISCELLANEOUS AND SPECIALTY RETAIL STORES,SCHOOLS,AMAZON UK RETAIL AMAZO,Not applicable
14/11/16,8.99 ,Mail Order / Direct Selling,DIRECT MARKETING-OTHER DIRECT MARKETERS/NOT ELSEW.,SCHOOLS,AMAZON EU,Not applicable
08/12/16,115.15 ,Books and Periodicals,BOOK STORES,SCHOOLS,AMAZON UK MARKETPLACE,Not applicable
04/10/16,144.69 ,General Retail and Wholesale,"GROCERY STORES, SUPERMARKETS",SCHOOLS,TESCO STORES 5999,Not applicable
11/10/16,177.77 ,General Retail and Wholesale,"GROCERY STORES, SUPERMARKETS",SCHOOLS,TESCO STORES 5999,Not applicable
18/10/16,135.92 ,General Retail and Wholesale,"GROCERY STORES, SUPERMARKETS",SCHOOLS,TESCO STORES 5999,Not applicable
19/10/16,56.97 ,General Retail and Wholesale,SPORTING GOODS STORES,SCHOOLS,DECATHLON UK LTD,Not applicable
01/11/16,120.85 ,General Retail and Wholesale,"GROCERY STORES, SUPERMARKETS",SCHOOLS,TESCO STORES 5999,Not applicable
07/11/16,54.90 ,Books and Periodicals,BOOK STORES,SCHOOLS,AMAZON UK MARKETPLACE,Not applicable
08/11/16,130.08 ,General Retail and Wholesale,"GROCERY STORES, SUPERMARKETS",SCHOOLS,TESCO STORES 5999,Not applicable
08/11/16,36.00 ,Books and Periodicals,BOOK STORES,SCHOOLS,WWW.TPOICAL-RESOURCES.,Not applicable
11/11/16,-11.25 ,General Retail and Wholesale,MISCELLANEOUS AND SPECIALTY RETAIL STORES,SCHOOLS,AMAZON UK MARKETPLACE,Not applicable
11/11/16,37.25 ,Books and Periodicals,BOOK STORES,SCHOOLS,AMAZON UK MARKETPLACE,Not applicable
14/11/16,104.65 ,General Retail and Wholesale,MISCELLANEOUS GENERAL MERCHANDISE,SCHOOLS,WWW.PARTYPACKS.CO.UK,Not applicable
15/11/16,143.99 ,General Retail and Wholesale,"GROCERY STORES, SUPERMARKETS",SCHOOLS,TESCO STORES 5999,Not applicable
22/11/16,141.83 ,General Retail and Wholesale,"GROCERY STORES, SUPERMARKETS",SCHOOLS,TESCO STORES 5999,Not applicable
23/11/16,20.56 ,Books and Periodicals,BOOK STORES,SCHOOLS,AMAZON UK MARKETPLACE,Not applicable
24/11/16,30.00 ,Clubs/Associations/Organisations,"ORGANIZATIONS, CHARITABLE AND SOCIAL SERVICES",SCHOOLS,NSPCC.CSOD.COM,Not applicable
24/11/16,60.26 ,General Retail and Wholesale,"GIFT, CARD, NOVELTY AND SOUVENIR SHOPS",SCHOOLS,WWW.TROPHYSTORE.CO.UK,Not applicable
29/11/16,150.65 ,General Retail and Wholesale,"GROCERY STORES, SUPERMARKETS",SCHOOLS,TESCO STORES 5999,Not applicable
06/12/16,6.99 ,General Retail and Wholesale,MISCELLANEOUS AND SPECIALTY RETAIL STORES,SCHOOLS,AMAZON UK RETAIL AMAZO,Not applicable
06/12/16,126.90 ,General Retail and Wholesale,"GROCERY STORES, SUPERMARKETS",SCHOOLS,TESCO STORES 5999,Not applicable
06/12/16,50.18 ,Mail Order / Direct Selling,DIRECT MARKETING-OTHER DIRECT MARKETERS/NOT ELSEW.,SCHOOLS,AMAZON EU,Not applicable
07/12/16,42.27 ,General Retail and Wholesale,MISCELLANEOUS AND SPECIALTY RETAIL STORES,SCHOOLS,AMAZON UK RETAIL AMAZO,Not applicable
12/12/16,164.00 ,General Retail and Wholesale,MISCELLANEOUS HOUSE FURNISHING SPECIALTY SHOPS,SCHOOLS,IKEA ONLINE,Not applicable
13/12/16,142.78 ,General Retail and Wholesale,"GROCERY STORES, SUPERMARKETS",SCHOOLS,TESCO STORES 5999,Not applicable
07/10/16,11.55 ,Books and Periodicals,BOOK STORES,SCHOOLS,AMAZON UK MARKETPLACE,Not applicable
10/10/16,22.72 ,General Retail and Wholesale,MISCELLANEOUS AND SPECIALTY RETAIL STORES,SCHOOLS,AMAZON UK RETAIL AMAZO,Not applicable
10/10/16,87.00 ,Mail Order / Direct Selling,DIRECT MARKETING-OTHER DIRECT MARKETERS/NOT ELSEW.,SCHOOLS,AMAZON EU,Not applicable
10/10/16,37.34 ,Books and Periodicals,BOOK STORES,SCHOOLS,AMAZON UK MARKETPLACE,Not applicable
10/10/16,21.95 ,Books and Periodicals,BOOK STORES,SCHOOLS,AMAZON UK MARKETPLACE,Not applicable
10/10/16,87.00 ,General Retail and Wholesale,MISCELLANEOUS AND SPECIALTY RETAIL STORES,SCHOOLS,AMAZON UK RETAIL AMAZO,Not applicable
11/10/16,14.40 ,Books and Periodicals,BOOK STORES,SCHOOLS,AMAZON UK MARKETPLACE,Not applicable
11/10/16,19.95 ,Books and Periodicals,BOOK STORES,SCHOOLS,AMAZON UK MARKETPLACE,Not applicable
12/10/16,20.00 ,Telecommunication Services,TELECOMMUNICATION EQUIPMENT INCL TELEPHONE SALES,SCHOOLS,VIRGIN MOBILE,Not applicable
12/10/16,10.60 ,Books and Periodicals,BOOK STORES,SCHOOLS,AMAZON UK MARKETPLACE,Not applicable
13/10/16,1.98 ,Books and Periodicals,BOOK STORES,SCHOOLS,AMAZON UK MARKETPLACE,Not applicable
14/10/16,36.15 ,Mail Order / Direct Selling,DIRECT MARKETING-OTHER DIRECT MARKETERS/NOT ELSEW.,SCHOOLS,AMAZON EU,Not applicable
17/10/16,54.24 ,Books and Periodicals,BOOK STORES,SCHOOLS,AMAZON UK MARKETPLACE,Not applicable
21/10/16,30.00 ,Professional Services,PROFESSIONAL SERVICES-NOT ELSEWHERE CLASSIFIED,SCHOOLS,SMART SURVEY SYSTEM,Not applicable
24/10/16,23.28 ,Books and Periodicals,BOOK STORES,SCHOOLS,AMAZON UK MARKETPLACE,Not applicable
07/11/16,39.89 ,Books and Periodicals,BOOK STORES,SCHOOLS,AMAZON UK MARKETPLACE,Not applicable
07/11/16,40.44 ,Books and Periodicals,BOOK STORES,SCHOOLS,OXFORDUNIVERSITYPR,Not applicable
10/11/16,17.29 ,Books and Periodicals,BOOK STORES,SCHOOLS,AMAZON UK MARKETPLACE,Not applicable
14/11/16,8.90 ,Books and Periodicals,BOOK STORES,SCHOOLS,AMAZON UK MARKETPLACE,Not applicable
21/11/16,30.00 ,Professional Services,PROFESSIONAL SERVICES-NOT ELSEWHERE CLASSIFIED,SCHOOLS,SMART SURVEY SYSTEM,Not applicable
23/11/16,50.00 ,Travel - Air/Rail/Road,PASSENGER RAILWAYS,SCHOOLS,OYSTER RENEW WEB,Not applicable
29/11/16,17.50 ,General Retail and Wholesale,SPORTING GOODS STORES,SCHOOLS,A1 TROPHY COMPANY,Not applicable
05/12/16,126.40 ,Books and Periodicals,BOOK STORES,SCHOOLS,AMAZON UK MARKETPLACE,Not applicable
08/12/16,22.98 ,General Retail and Wholesale,MISCELLANEOUS AND SPECIALTY RETAIL STORES,SCHOOLS,AMAZON UK RETAIL AMAZO,Not applicable
09/12/16,19.15 ,Mail Order / Direct Selling,DIRECT MARKETING-OTHER DIRECT MARKETERS/NOT ELSEW.,SCHOOLS,FINDEL ED LTD,Not applicable
14/12/16,136.93 ,Restaurants and Bars,FAST FOOD RESTAURANTS,SCHOOLS,PAPA JOHN'S PIZZA,Not applicable
03/10/16,23.00 ,Books and Periodicals,BOOK STORES,SCHOOLS,"AMAZON SVCS EUROPE,SAR",Not applicable
06/10/16,6.14 ,Mail Order / Direct Selling,DIRECT MARKETING-OTHER DIRECT MARKETERS/NOT ELSEW.,SCHOOLS,AMAZON EU,Not applicable
07/10/16,11.70 ,Books and Periodicals,BOOK STORES,SCHOOLS,AMAZON UK MARKETPLACE,Not applicable
12/10/16,100.00 ,Clubs/Associations/Organisations,"ORGANIZATIONS, CHARITABLE AND SOCIAL SERVICES",SCHOOLS,WWW.RGS.ORG,Not applicable
17/10/16,41.06 ,General Retail and Wholesale,MISCELLANEOUS AND SPECIALTY RETAIL STORES,SCHOOLS,WWW.BADGESPLUS.CO.UK,Not applicable
17/10/16,18.97 ,Books and Periodicals,BOOK STORES,SCHOOLS,AMAZON UK MARKETPLACE,Not applicable
19/10/16,80.00 ,Leisure Activities,RECREATION SERVICES (NOT ELSEWHERE CLASSIFIED),SCHOOLS,LT MUSEUM ADMS,Not applicable
19/10/16,30.49 ,Books and Periodicals,BOOK STORES,SCHOOLS,AMAZON UK MARKETPLACE,Not applicable
24/10/16,56.00 ,General Retail and Wholesale,"GIFT, CARD, NOVELTY AND SOUVENIR SHOPS",SCHOOLS,WWW.ENGLISHSTAMP.COM,Not applicable
08/11/16,9.98 ,Books and Periodicals,BOOK STORES,SCHOOLS,AMAZON UK MARKETPLACE,Not applicable
08/11/16,42.31 ,Mail Order / Direct Selling,DIRECT MARKETING-OTHER DIRECT MARKETERS/NOT ELSEW.,SCHOOLS,AMAZON EU,Not applicable
08/11/16,4.85 ,Books and Periodicals,BOOK STORES,SCHOOLS,AMAZON UK MARKETPLACE,Not applicable
09/11/16,12.97 ,General Retail and Wholesale,MISCELLANEOUS AND SPECIALTY RETAIL STORES,SCHOOLS,AMAZON UK RETAIL AMAZO,Not applicable
14/11/16,10.98 ,Mail Order / Direct Selling,DIRECT MARKETING-OTHER DIRECT MARKETERS/NOT ELSEW.,SCHOOLS,AMAZON EU,Not applicable
17/11/16,5.99 ,Books and Periodicals,BOOK STORES,SCHOOLS,AMAZON UK MARKETPLACE,Not applicable
21/11/16,17.74 ,Books and Periodicals,BOOK STORES,SCHOOLS,AMAZON UK MARKETPLACE,Not applicable
25/11/16,14.46 ,General Retail and Wholesale,MISCELLANEOUS AND SPECIALTY RETAIL STORES,SCHOOLS,AMAZON UK RETAIL AMAZO,Not applicable
29/11/16,105.00 ,General Retail and Wholesale,"GROCERY STORES, SUPERMARKETS",SCHOOLS,MARKS&SPENCER PLC,Not applicable
29/11/16,109.88 ,Mail Order / Direct Selling,DIRECT MARKETING-OTHER DIRECT MARKETERS/NOT ELSEW.,SCHOOLS,AMAZON EU,Not applicable
29/11/16,9.93 ,Mail Order / Direct Selling,DIRECT MARKETING-OTHER DIRECT MARKETERS/NOT ELSEW.,SCHOOLS,AMAZON EU,Not applicable
30/11/16,30.00 ,Books and Periodicals,BOOK STORES,SCHOOLS,WWW.JOLLYLEARNING.,Not applicable
30/11/16,36.63 ,General Retail and Wholesale,MISCELLANEOUS AND SPECIALTY RETAIL STORES,SCHOOLS,AMAZON UK RETAIL AMAZO,Not applicable
02/12/16,8.99 ,Mail Order / Direct Selling,DIRECT MARKETING-OTHER DIRECT MARKETERS/NOT ELSEW.,SCHOOLS,AMAZON EU,Not applicable
02/12/16,18.40 ,Books and Periodicals,BOOK STORES,SCHOOLS,AMAZON UK MARKETPLACE,Not applicable
15/12/16,23.40 ,Print and Advertising,MISCELLANEOUS PUBLISHING AND PRINTING,SCHOOLS,WWW.SCHOOLSTICKERS.CO.,Not applicable
